Workbook

Sheet Perfis I-H Laminados
B1: Dimensionamento de Perfis I e H Laminados Padrão Açominas
G6: Resultado: | I6: =MAX(J17,J18,J22,J26,J30,J34,J38,J42,J49) -> 0.6851321741
B7: Esforços e Distâncias | G7: W 200 x 15,0 | R7: Perfil | S7: Peso | T7: %
B8: Lx (mm) | C8: 6000 | G8: d(mm) | H8: =VLOOKUP(G7,'Tabela de Perfis'!A:C,3,0) -> 200 | I8: Wx(cm³) | J8: =VLOOKUP(G7,'Tabela de Perfis'!A:R,12,0) -> 130.5 | K8: rx(cm) | L8: =VLOOKUP(G7,'Tabela de Perfis'!A:N,13,0) -> 8.2 | R8: W 310 x 23,8 | S8: 23.8 | T8: 0.9501773504
B9: Ly (mm) | C9: 2000 | G9: bf(mm) | H9: =VLOOKUP(G7,'Tabela de Perfis'!A:D,4,0) -> 100 | I9: Wy(cm³) | J9: =VLOOKUP(G7,'Tabela de Perfis'!A:R,16,0) -> 17.4 | K9: ry(cm) | L9: =VLOOKUP(G7,'Tabela de Perfis'!A:R,17,0) -> 2.12 | R9: W 250 x 25,3 | S9: 25.3 | T9: 0.979507632
B10: N(kN) | C10: -11.7 | G10: d'(mm) | H10: =VLOOKUP(G7,'Tabela de Perfis'!A:H,8,0) -> 170 | I10: Zx(cm³) | J10: =VLOOKUP(G7,'Tabela de Perfis'!A:N,14,0) -> 147.9 | K10: Área(cm²) | L10: =VLOOKUP(G7,'Tabela de Perfis'!A:I,9,0) -> 19.4 | R10: W 310 x 28,3 | S10: 28.3 | T10: 0.7489397159
B11: Vx(kN) | C11: 0 | G11: tw(mm) | H11: =VLOOKUP(G7,'Tabela de Perfis'!A:F,5,0) -> 4.3 | I11: Zy(cm³) | J11: =VLOOKUP(G7,'Tabela de Perfis'!A:R,18,0) -> 27.3 | K11: ho/tw | L11: =H10/H11 -> 39.53488372 | M11: Limite: | N11: =1.49*SQRT(20500/C21) -> 36.32065329 | P11: =IF(L11<N11,"Compacta","Esbelta") -> Esbelta | R11: W 250 x 28,4 | S11: 28.4 | T11: 0.843557722
B12: Vy(kN) | C12: 32.7 | G12: tf(mm) | H12: =VLOOKUP(G7,'Tabela de Perfis'!A:F,6,0) -> 5.2 | I12: Ix(cm4) | J12: =VLOOKUP(G7,'Tabela de Perfis'!A:R,11,0) -> 1305 | K12: b/tf | L12: =(H9/2)/H12 -> 9.615384615 | M12: Limite: | N12: =0.56*SQRT(20500/C21) -> 13.65071533 | O12: =1.03*SQRT(20500/C21) -> 25.10756569 | P12: =IF(L12>O12,"Esbelta",IF(L12<N12,"Compacta","semicompacta")) -> Compacta | R12: W 200 x 31,3 | S12: 31.3 | T12: 0.8391378036
B13: Mx(kN.cm) | C13: 2355 | G13: h(mm) | H13: =H8-2*H12 -> 189.6 | I13: Iy(cm4) | J13: =VLOOKUP(G7,'Tabela de Perfis'!A:R,15,0) -> 87 | K13: Peso (kg/m) | L13: =VLOOKUP(G7,'Tabela de Perfis'!A:B,2,0) -> 15 | R13: W 250 x 32,7 | S13: 32.7 | T13: 0.6630119388
B14: My(kN.cm) | C14: 0 | R14: W 310 x 32,7 | S14: 32.7 | T14: 0.6287889077
B15: kx | C15: 1 | G15: 1. Verificação da Esbeltez do perfil | R15: W 360 x 32,9 | S15: 32.9 | T15: 0.5307733236
B16: ky | C16: 1 | D16: kz | E16: 1 | G16: Limite | H16: Real | I16: Status | J16: % | K16: =MAX(J17:J18) -> 0.4716981132 | R16: W 200 x 35,9 (H) | S16: 35.9 | T16: 0.7493195625
B17: d (mm) | C17: 0 | G17: =IF(C10>0,300,IF(C10<0,200,"N.A")) -> 200 | H17: =(C8*C15/10)/L8 -> 73.17073171 | I17: =IF(H17<G17,"OK","NOK") -> OK | J17: =IF(G17="N.A",0,H17/G17) -> 0.3658536585 | K17: λx | R17: W 150 x 37,1 (H) | S17: 37.1 | T17: 0.9066444535
B18: Lb (mm) | C18: 2000 | G18: =IF(C10>0,300,IF(C10<0,200,"N.A")) -> 200 | H18: =(C9*C16/10)/L9 -> 94.33962264 | I18: =IF(H18<G18,"OK","NOK") -> OK | J18: =IF(G18="N.A",0,H18/G18) -> 0.4716981132 | K18: λy | R18: W 250 x 38,5 | S18: 38.5 | T18: 0.5486646713
B19: Material | R19: W 310 x 38,7 | S19: 38.7 | T19: 0.4616700638
B20: ASTM A572GR50 | G20: 2. Resistência à tração | R20: W 410 x 38,8 | S20: 38.8 | T20: 0.3909678655
B21: Fy (kN/cm²) | C21: =VLOOKUP(B20,Aços!A:B,2,0) -> 34.5 | G21: Nrd(kN) | H21: Nsd(kN) | I21: Status | J21: % | K21: Coef. S | R21: W 360 x 39,0 | S21: 39 | T21: 0.4312821201
G22: =IF(C10<0,"N.A",L10*C21/K22) -> N.A | H22: =IF(C10<0,0,C10) -> 0 | I22: =IF(C10<0,"N.A",IF(H22<G22,"OK","NOK")) -> N.A | J22: =IF(C10<0,0,H22/G22) -> 0 | K22: 1.1 | L22: =MAX(J22,J26) -> 0.03705746919 | R22: W 200 x 41,7 (H) | S22: 41.7 | T22: 0.6333886809
B23: Dados para Cálculo de NRd | R23: W 360 x 44,0 | S23: 44 | T23: 0.3622573748
G24: 3. Resistência à Compressão | R24: W 310 x 44,5 | S24: 44.5 | T24: 0.3985862724
G25: Nrd(kN) | H25: Nsd(kN) | I25: Status | J25: % | K25: Coef. S | R25: W 250 x 44,8 | S25: 44.8 | T25: 0.4685766244
B26: Q | C26: =VLOOKUP(G7,'Tabela de Perfis'!A:W,23,0) -> 0.95 | G26: =IF(C10>0,"N.A",C30*C26*L10*C21/K26) -> 315.7258241 | H26: =IF(C10>0,0,-C10) -> 11.7 | I26: =IF(C10>0,"N.A",IF(H26<G26,"OK","NOK")) -> OK | J26: =IF(C10>0,0,H26/G26) -> 0.03705746919 | K26: 1.1 | L26: =IF(G26="N.A","Não há compressão solicitante","") ->  | R26: W 200 x 46,1 (H) | S26: 46.1 | T26: 0.5736691227
B27: Nex(kN) | C27: =(PI()^2*20500*J12)/((C15*C8/10)^2) -> 733.4349771 | D27: r0(cm) | E27: =SQRT((L8^2)+(L9^2)) -> 8.469616284 | R27: W 410 x 46,1 | S27: 46.1 | T27: 0.3188706156
B28: Ney(kN) | C28: =(PI()^2*20500*J13)/((C16*C9/10)^2) -> 440.0609862 | D28: Nez(kN) | E28: =(((PI()^2)*20500*VLOOKUP(G7,'Tabela de Perfis'!A:X,24,0))/(('Perfis I-H Laminados'!E16*'Perfis I-H Laminados'!C18/10)^2)+7700*VLOOKUP(G7,'Tabela de Perfis'!A:T,20,0))/(E27^2) -> 799.8016612 | G28: 4. Resistência à Flexão eixo X-X | R28: W 360 x 51,0 | S28: 51 | T28: 0.3376097232
B29: λ0 | C29: =SQRT(C26*L10*C21/MIN(C27:C28,E28)) -> 1.202031313 | G29: Mrd(kN.cm) | H29: Msd(kN.cm) | I29: Status | J29: % | K29: Coef. S | R29: W 200 x 52,0 (H) | S29: 52 | T29: 0.5617977528
B30: χ | C30: =IF(C29<=1.5,0.658^(C29^2),0.877/(C29^2)) -> 0.546208382 | G30: =MIN(C50:C52,E64) -> 3532.835057 | H30: =IF(C13<=0,0,C13) -> 2355 | I30: =IF(C13<=0,"N.A",IF(H30<G30,"OK","NOK")) -> OK | J30: =IF(C13<=0,0,H30/G30) -> 0.6666034395 | K30: 1.1 | R30: W 310 x 52,0 | S30: 52 | T30: 0.3750937734
R31: W 460 x 52,0 | S31: 52 | T31: 0.279173646
B32: Esbeltez Limite FLA X-X | D32: Esbeltez Limite FLA Y-Y | G32: 5. Resistência à Flexão eixo Y-Y | L32: bef | M32: =1.92*H11*SQRT(20500/C21)*(1-(0.34/L11)*SQRT(20500/C21))/10 -> 15.90611895 | R32: HP 200 x 53,0 (H) | S32: 53 | T32: 0.5847953216
B33: λalma | C33: =(H8-2*H12)/H11 -> 44.09302326 | D33: λalma | E33: =C33 -> 44.09302326 | G33: Mrd(kN.cm) | H33: Msd(kN.cm) | I33: Status | J33: % | K33: Coef. S | L33: Iy | M33: =(((H12/10)*(H9/10)^3)/12)*2 +(M32*(H11/10)^3)/12 -> 86.77205398 | R33: W 410 x 53,0 | S33: 53 | T33: 0.3021148036
B34: λp | C34: =3.76*SQRT(20500/C21) -> 91.65480292 | D34: λp | E34: =C34/3.76*1.12 -> 27.30143066 | G34: =MIN(E50:E52) -> 545.7272727 | H34: =IF(C14<=0,0,C14) -> 0 | I34: =IF(C14<=0,"N.A",IF(H34<G34,"OK","NOK")) -> N.A | J34: =IF(IF(C14<=0,0,H34/G34)<0,"N.A",IF(C14<=0,0,H34/G34)) -> 0 | K34: 1.1 | L34: Wef | M34: =M33/(H9/20)*0.75 -> 13.0158081 | R34: W 360 x 57,8 | S34: 57.8 | T34: 0.3351206434
B35: λr | C35: =C34/3.76*5.7 -> 138.944781 | D35: λr | E35: =C35/5.7*1.4 -> 34.12678832 | R35: W 200 x 59,0 (H) | S35: 59 | T35: 0.5561735261
B36: Mr | C36: =C21*J8 -> 4502.25 | D36: Mr | E36: =C21*M34 -> 449.0453794 | G36: 6. Resistência ao esforço cortante eixo X | R36: W 410 x 60,0 | S36: 60 | T36: 0.2962085308
B37: =IF(C33>C35,"Esbelta",IF(C33<=C34,"Compacta","Semi-Compacta")) -> Compacta | D37: =IF(E33>E35,"Esbelta",IF(E33<=E34,"Compacta","Semi-Compacta")) -> Esbelta | G37: Vrd(kN) | H37: Vsd(kN) | I37: Status | J37: % | K37: Coef. S | R37: W 460 x 60,0 | S37: 60 | T37: 0.272479564
G38: =C58 -> 195.7090909 | H38: =C11 -> 0 | I38: =IF(C11<=0,"N.A",IF(H38<G38,"OK","NOK")) -> N.A | J38: =IF(C11<=0,0,H38/G38) -> 0 | K38: 1.1 | R38: HP 250 x 62,0 (H) | S38: 62 | T38: 0.4775549188
B39: Esbeltez Limite FLM X-X | D39: Esbeltez Limite FLM Y-Y | R39: W 360 x 64,0 | S39: 64 | T39: 0.3378378378
B40: λmesa | C40: =L12 -> 9.615384615 | D40: λmesa | E40: =C40 -> 9.615384615 | G40: 7. Resistência ao esforço cortante eixo Y | R40: W 530 x 66,0 | S40: 66 | T40: 0.2443792766
B41: λp | C41: =0.38*SQRT(20500/C21) -> 9.262985402 | D41: λp | E41: =C41 -> 9.262985402 | G41: Vrd(kN) | H41: Vsd(kN) | I41: Status | J41: % | K41: Coef. S | R41: W 410 x 67,0 | S41: 67 | T41: 0.2956830278
B42: λr | C42: =0.83*SQRT(20500/(C21-0.3*C21)) -> 24.18223601 | D42: λr | E42: =C42 -> 24.18223601 | G42: =E58 -> 161.8363636 | H42: =C12 -> 32.7 | I42: =IF(C12<=0,"N.A",IF(H42<G42,"OK","NOK")) -> OK | J42: =IF(C12<=0,0,H42/G42) -> 0.2020559488 | K42: 1.1 | R42: W 460 x 68,0 | S42: 68 | T42: 0.2708559047
B43: Mr | C43: =(C21-0.3*C21)*J8 -> 3151.575 | D43: Mr | E43: =(C21-0.3*C21)*J9 -> 420.21 | R43: W 200 x 71,0 (H) | S43: 71 | T43: 0.5452562704
B44: =IF(C40>C42,"Esbelta",IF(C40<=C41,"Compacta","Semi-Compacta")) -> Semi-Compacta | D44: =IF(E40>E42,"Esbelta",IF(E40<=E41,"Compacta","Semi-Compacta")) -> Semi-Compacta | G44: 8. Resistência ao esforços Combinados | R44: W 360 x 72,0 | S44: 72 | T44: 0.336473755
R45: W 530 x 72,0 | S45: 72 | T45: 0.2393489708
B46: Momento Plástico =Z.fy X-X | D46: Momento Plástico =Z.fy Y-Y | G46: Nsd/Nrd | H46: =IF(G22="N.A",H26/G26,H22/G22) -> 0.03705746919 | R46: W 250 x 73,0 (H) | S46: 73 | T46: 0.4537205082
B47: Mpl(kN.cm) | C47: =J10*C21 -> 5102.55 | D47: Mpl(kN.cm) | E47: =J11*C21 -> 941.85 | R47: W 460 x 74,0 | S47: 74 | T47: 0.2663825253
G48: Combinação | H48: Limite | I48: Resultado | J48: Cálculo | R48: W 530 x 74,0 | S48: 74 | T48: 0.2408477842
B49: MRd X-X | D49: MRd Y-Y | G49: N.Mx.My | H49: 1 | I49: =IF(J49<=H49,"OK","NOK") -> OK | J49: =IF(H46<0.2,H46/2+H30/G30+H34/G34,H46+(8/9)*(H34/G34+H30/G30)) -> 0.6851321741 | R49: W 410 x 75,0 | S49: 75 | T49: 0.2944640754
B50: FLA | C50: =IF(B37="Compacta",C47,(C47-(C47-C36)*((C33-C34)/(C35-C34)))/K30) -> 5102.55 | D50: FLA | E50: =IF(D37="Esbelta",(J9^2)/J9*C21/K34,IF(D37="Compacta",E47,(E47-(E47-E36)*((E33-E34)/(E35-E34)))/K30)) -> 545.7272727 | R50: HP 310 x 79,0 (H) | S50: 79 | T50: 0.3915426782
B51: FLM | C51: =IF(B44="Compacta",C47,(C47-(C47-C43)*((C40-C41)/(C42-C41)))/K30) -> 4596.78829 | D51: FLM | E51: =IF(D44="Esbelta",J9*C21/K34,IF(D44="Compacta",E47,(E47-(E47-E43)*((E40-E41)/(E42-E41)))/K30)) -> 845.0260322 | R51: W 360 x 79,0 | S51: 79 | T51: 0.3337783712
B52: 1,5*W*Fy | C52: =1.5*J8*C21/K30 -> 6139.431818 | D52: 1,5*W*Fy | E52: =1.5*J9*C21/K34 -> 818.5909091 | R52: W 250 x 80,0 (H) | S52: 80 | T52: 0.4504504505
R53: W 460 x 82,0 | S53: 82 | T53: 0.2653927813
B54: Esforço Cortante X | D54: Esforço Cortante Y | R54: W 530 x 82,0 | S54: 82 | T54: 0.2343017807
B55: λMesa | C55: =C40 -> 9.615384615 | D55: λAlma | E55: =E33 -> 44.09302326 | R55: HP 250 x 85,0 (H) | S55: 85 | T55: 0.469924812
B56: λp | C56: =1.1*SQRT(C59*20500/C21) -> 26.81390511 | D56: λp | E56: =1.1*SQRT(E59*20500/C21) -> 59.95771457 | R56: W 410 x 85,0 | S56: 85 | T56: 0.2929115407
B57: Aw | C57: =2*H9/10*H12/10 -> 10.4 | D57: Aw | E57: =(H8/10)*H11/10 -> 8.6 | R57: W 530 x 85,0 | S57: 85 | T57: 0.2357378595
B58: Vrdx (kN) | C58: =0.6*C57*C21/K38 -> 195.7090909 | D58: Vrdy | E58: =0.6*E57*C21/K38 -> 161.8363636 | R58: W 200 x 86,0 (H) | S58: 86 | T58: 0.5399568035
B59: kv | C59: =C15 -> 1 | D59: kv | E59: =IF(OR(C17/H10>3,C17/H10>((260/L11)^2),C17=0),5,5+5/((C17/H10)^2)) -> 5 | R59: W 250 x 89,0 (H) | S59: 89 | T59: 0.4472271914
R60: W 460 x 89,0 | S60: 89 | T60: 0.2634351949
B61: Esbeltez Limite FLT X-X | D61: Estado Limite FLT | R61: W 360 x 91,0 (H) | S61: 91 | T61: 0.3291639236
B62: λ(lb) | C62: =(C18/10)/L9 -> 94.33962264 | D62: B1 | E62: =((0.7*C21)*VLOOKUP('Perfis I-H Laminados'!G7,'Tabela de Perfis'!A:AC,12,0))/(20500*VLOOKUP('Perfis I-H Laminados'!G7,'Tabela de Perfis'!A:T,20,0)) -> 0.07499286139 | R62: W 530 x 92,0 | S62: 92 | T62: 0.2309468822
B63: λp | C63: =1.76*SQRT(20500/C21) -> 42.90224818 | D63: Mcr | E63: =((((PI())^2)*20500*'Perfis I-H Laminados'!J13)/(('Perfis I-H Laminados'!C18/10)^2))*SQRT((VLOOKUP('Perfis I-H Laminados'!G7,'Tabela de Perfis'!A:AC,24,0)/'Perfis I-H Laminados'!J13)*(1+(0.039*VLOOKUP(G7,'Tabela de Perfis'!A:AC,20,0)*(('Perfis I-H Laminados'!C18/10)^2)/(VLOOKUP('Perfis I-H Laminados'!G7,'Tabela de Perfis'!A:AC,24,0))))) -> 5041.807888 | R63: HP 310 x 93,0 (H) | S63: 93 | T63: 0.3891050584
B64: λr | C64: =SQRT((SQRT(((((E62^2)*27*VLOOKUP(G7,'Tabela de Perfis'!A:X,24,0))/'Perfis I-H Laminados'!J13)+1))+1))*((SQRT('Perfis I-H Laminados'!J13*VLOOKUP('Perfis I-H Laminados'!G7,'Tabela de Perfis'!A:AC,20,0)))*1.38)/('Perfis I-H Laminados'!L9*VLOOKUP('Perfis I-H Laminados'!G7,'Tabela de Perfis'!A:AC,20,0)*'Perfis I-H Laminados'!E62) -> 125.4001421 | D64: Mrd | E64: =IF(B66="Esbelta",E63/K30,IF(B66="Semi-Compacta",(E65-((C62-C63)/(C64-C63))*(E65-C65))/1.1,IF(B66="compacta",J10*C21/K30))) -> 3532.835057 | R64: W 310 x 97,0 (H) | S64: 97 | T64: 0.3723008191
B65: Mr | C65: =0.7*C21*J8 -> 3151.575 | D65: Mpl | E65: =J10*C21 -> 5102.55 | R65: W 460 x 97,0 | S65: 97 | T65: 0.2627430373
B66: =IF(C62>C64,"Esbelta",IF(C62<=C63,"Compacta","Semi-Compacta")) -> Semi-Compacta | R66: W 250 x 101,0 (H) | S66: 101 | T66: 0.4436557232
R67: W 360 x 101,0 (H) | S67: 101 | T67: 0.3270111184
R68: W 530 x 101,0 | S68: 101 | T68: 0.2286236854
R69: W 610 x 101,0 | S69: 101 | T69: 0.2056766763
R70: W 460 x 106,0 | S70: 106 | T70: 0.262605042
R71: W 310 x 107,0 (H) | S71: 107 | T71: 0.3706449222
R72: W 530 x 109,0 | S72: 109 | T72: 0.2278942571
R73: HP 310 x 110,0 (H) | S73: 110 | T73: 0.3855050116
R74: W 360 x 110,0 (H) | S74: 110 | T74: 0.3255208333
R75: W 610 x 113,0 | S75: 113 | T75: 0.2029220779
R76: W 250 x 115,0 (H) | S76: 115 | T76: 0.4393673111
R77: W 310 x 117,0 (H) | S77: 117 | T77: 0.3687315634
R78: W 360 x 122,0 (H) | S78: 122 | T78: 0.325732899
R79: HP 310 x 125,0 (H) | S79: 125 | T79: 0.3831417625
R80: W 610 x 125,0 | S80: 125 | T80: 0.2008838891
R81: W 610 x 140,0 | S81: 140 | T81: 0.1995211492
R82: W 610 x 155,0 | S82: 155 | T82: 0.1954652072
R83: W 610 x 174,0 | S83: 174 | T83: 0.1941747573

Sheet Ligação Soldada Viga-Pilar
A2: Peça | B2: Selecione o Perfil | C2: d | D2: bf | E2: tw | F2: tf | G2: h | H2: d’ | I2: Área | J2: Ix | K2: Wx | M2: Verificação dos enrijecedores à tração
A3: P1 | B3: W 150 x 22,5 (H) | C3: =IF($B3="","",VLOOKUP($B3,'Tabela de Perfis'!$A:$AC,3,0)) -> 152 | D3: =IF($B3="","",VLOOKUP($B3,'Tabela de Perfis'!$A:$AC,4,0)) -> 152 | E3: =IF($B3="","",VLOOKUP($B3,'Tabela de Perfis'!$A:$AC,5,0)) -> 5.8 | F3: =IF($B3="","",VLOOKUP($B3,'Tabela de Perfis'!$A:$AC,6,0)) -> 6.6 | G3: =IF($B3="","",VLOOKUP($B3,'Tabela de Perfis'!$A:$AC,7,0)) -> 139 | H3: =IF($B3="","",VLOOKUP($B3,'Tabela de Perfis'!$A:$AC,8,0)) -> 119 | I3: =IF($B3="","",VLOOKUP($B3,'Tabela de Perfis'!$A:$AC,9,0)) -> 29 | J3: =IF($B3="","",VLOOKUP($B3,'Tabela de Perfis'!$A:$AC,11,0)) -> 1229 | K3: =IF($B3="","",VLOOKUP($B3,'Tabela de Perfis'!$A:$AC,12,0)) -> 161.7 | M3: 1 Escoamento da Seção Bruta
A4: P2 | B4: W 200 x 15,0 | C4: =IF($B4="","",VLOOKUP($B4,'Tabela de Perfis'!$A:$AC,3,0)) -> 200 | D4: =IF($B4="","",VLOOKUP($B4,'Tabela de Perfis'!$A:$AC,4,0)) -> 100 | E4: =IF($B4="","",VLOOKUP($B4,'Tabela de Perfis'!$A:$AC,5,0)) -> 4.3 | F4: =IF($B4="","",VLOOKUP($B4,'Tabela de Perfis'!$A:$AC,6,0)) -> 5.2 | G4: =IF($B4="","",VLOOKUP($B4,'Tabela de Perfis'!$A:$AC,7,0)) -> 190 | H4: =IF($B4="","",VLOOKUP($B4,'Tabela de Perfis'!$A:$AC,8,0)) -> 170 | I4: =IF($B4="","",VLOOKUP($B4,'Tabela de Perfis'!$A:$AC,9,0)) -> 19.4 | J4: =IF($B4="","",VLOOKUP($B4,'Tabela de Perfis'!$A:$AC,11,0)) -> 1305 | K4: =IF($B4="","",VLOOKUP($B4,'Tabela de Perfis'!$A:$AC,12,0)) -> 130.5 | M4: Nt,Rd | N4: =(((D4-E4)/10)*(J7/10)*J8)/1.1 -> 138.1125 | O4: kN
M5: Nt,Sd | N5: =MAX(F12:F13) -> 109.0061224 | O5: kN
A6: Material P1 | E6: Material P2 | I6: Enrijecedores | M6: Status | N6: =IF(N5>N4,"REPROVADO","APROVADO") -> APROVADO | O6: =N5/N4 -> 0.7892560228
A7: Limite | B7: Valor | C7: Unidade | E7: Limite | F7: Valor | G7: Unidade | I7: Espessura (t) | J7: 6.35 | K7: mm
A8: Fy | B8: 34.5 | C8: kN/cm² | E8: Fy | F8: 34.5 | G8: kN/cm² | I8: Fy | J8: 25 | K8: kN/cm² | M8: 2 Ruptura da Seção Líquida
A9: Fu | B9: 45 | C9: kN/cm² | E9: Fu | F9: 45 | G9: kN/cm² | I9: Fu | J9: 40 | K9: kN/cm² | M9: Nt,Rd | N9: =(((D4-E4-2*F4)/10)*(J7/10)*J9)/1.35 -> 160.4903704 | O9: kN
M10: Nt,Sd | N10: =N5 -> 109.0061224 | O10: kN
A11: Esforço | B11: Valor | C11: Unidade | E11: Esforço | F11: Valor | G11: Unidade | I11: y | J11: 0 | K11: mm | M11: Status | N11: =IF(N10>N9,"REPROVADO","APROVADO") -> APROVADO | O11: =N10/N9 -> 0.6792066228
A12: Msd | B12: 2355 | C12: kN.cm | E12: Mesa Sup. | F12: =(B12/K3)*(D3/10*F3/10)+B13 -> 109.0061224 | G12: kN
A13: Nsd | B13: -37.1 | C13: kN | E13: Mesa Inf | F13: =(-1)*(B12/K3)*(D3/10*F3/10)+B13 -> -183.2061224 | G13: kN | I13: Dados do Metal de Solda | M13: Verificação dos enrijecedores à compressão
I14: Fw | J14: 48.5 | K14: kN/cm² | M14: Iy | N14: =2*((((25*E4/10)*(E4/20)^3)/12)+((25*E4/10)*(E4/10/2)*(E4/10/4)^2)+((J7/10)*(((D4-E4)/20)^3))/12+((D4-E4)/20)*(J7/10)*(E4/20+((D4-E4)/40))^2) -> 52.98368444 | O14: cm^4
A15: Verificação | B15: Descrição | I15: Perna do Filete | J15: 5 | K15: mm | M15: Ag | N15: =(D4/10*J7/10)+(25*E4/10*E4/10-E4/10*J7/10) -> 10.69945 | O15: cm²
A16: 1 | B16: Flexão Local de Mesa Tracionada | I16: Perna mínima | J16: =IF(AND(MIN(F3:F4)<=19,MIN(F3:F4)>12.5),6,IF(AND(MIN(F3:F4)<=12.5,MIN(F3:F4)>6.35),5,IF(MIN(F3:F4)<=6.35,3,8))) -> 3 | K16: mm
A17: Nt, Rd | B17: =IF(OR(AND(F13>0,(J11+C3)>10*F4),AND(F12>0,J11>10*F4)),6.25*(F4/10)^2*F8/1.1,(6.25*(F4/10)^2*F8/1.1)/2) -> 26.50227273 | C17: kN | M17: b/t | N17: =((D4-E4)/2)/J7 -> 7.535433071
A18: Nt, Sd | B18: =IF(F12>0,F12,F13) -> 109.0061224 | C18: kN | D18: =IF(B18<B17,"Essa verificação não exigiu enrigecedor","É necessário enrijecedor") -> É necessário enrijecedor | I18: 1-Ruptura da Solda na Seção Efetiva | M18: b/t (lim) | N18: =0.56*(SQRT(20500/J8)) -> 16.03595959
I19: Fw, Rd | J19: =0.6*(0.707*J15/10*((2*D3-2*F3-E3)/10)*J14/1.35) -> 217.1668333 | K19: kN | M19: Q | N19: =IF(N18>N17,1,IF(N17<1.839*N18,1.415-0.74*N17*SQRT(J8/20500),0.69*20500/(J8*N17^2))) -> 1
A20: 2 | B20: Escoamento da Alma | I20: Ft, Sd | J20: =B18 -> 109.0061224 | K20: kN
A21: Nt,Rd | B21: =IF(OR(AND(F12>0,J11>C4),AND(F13>0,(J11+C3)>C4)),(5*(2*F4/10)+(F3/10))*1.1*(F4/10)*F8/1.1,(2.5*(2*F3/10)+(F4/10))*1.1*(F4/10)*F8/1.1) -> 68.5308 | M21: Ney | N21: =((PI()^2)*20500*N14)/((0.75*H4/10)^2) -> 65944.01603 | O21: kN
A22: Nt,Sd | B22: =B18 -> 109.0061224 | D22: =IF(B22<B21,"Essa verificação não exigiu enrigecedor","É necessário enrijecedor") -> É necessário enrijecedor | I22: 2-Escoamento do Metal Base | M22: Lambda-Zero | N22: =SQRT(N19*N15*J8/N21) -> 0.06368879542
I23: Ft, Rd | J23: =(0.6*(J15/10*(2*D3-2*F3-E3)/10*MIN(B8,F8))/1.1) -> 268.1590909 | K23: kN | M23: X | N23: =IF(N22<1.5,0.658^(N22^2),0.877/(N22^2)) -> 0.9983036902
A24: 3 | B24: Enrugamento da Alma Comprimida | I24: Ft, Sd | J24: =J20 -> 109.0061224 | K24: kN | M24: Nc, Rd | N24: =N23*N19*N15*J8/1.1 -> 242.7568277
A25: Nc,Rd | B25: =IF(OR(AND(F13<0,(J11+C3)>0.5*C4),AND(F12<0,J11>0.5*C4)),((0.66*(E4/10)^2)/1.1)*(1+3*(F3/C4)*((E4/F4)^1.5))*(SQRT((20500*F8*(F4/10))/(E4/10))),IF(B27<0.2,((0.33*(E4/10)^2)/1.1)*(1+3*(F3/C4)*((E4/F4)^1.5))*(SQRT((20500*F8*(F4/10))/(E4/10))),((0.33*(E4/10)^2)/1.1)*(1+3*((4*F3/C4)+0.2)*(SQRT((20500*F8*(F4/10))/(E4/10)))))) -> 110.2366705 | M25: Nc, Sd | N25: =ABS(MIN(F12:F13)) -> 183.2061224
A26: Nc,Sd | B26: =ABS(MIN(F12:F13)) -> 183.2061224 | D26: =IF(B26<B25,"Essa verificação não exigiu enrigecedor","É necessário enrijecedor") -> É necessário enrijecedor | I26: Status | J26: =IF(AND(J24<J23,J20<J19,J16<=J15),"APROVADO","REPROVADO") -> APROVADO | M26: Status | N26: =IF(N25>N24,"REPROVADO","APROVADO") -> APROVADO | O26: =N25/N24 -> 0.7546898853
A27: Ln/d | B27: =F3/C4 -> 0.033 | I27: =IF(J15<J16,"PERNA DO FILETE ABAIXO DO MÍNIMO","") -> 
A28: 4 | B28: Flambagem da Alma Comprimida
A29: Nc, Rd | B29: =IF(OR(AND(F13<0,(J11+C3)>0.5*C4),AND(F12<0,J11>0.5*C4)),(24*((E4/10)^3)*SQRT(20500*F8))/(1.1*(H4/10)),(12*((E4/10)^3)*SQRT(20500*F8))/(1.1*(H4/10))) -> 85.81465878
A30: Nc, Sd | B30: =B26 -> 183.2061224 | D30: =IF(B30<B29,"Essa verificação não exigiu enrigecedor","É necessário enrijecedor") -> É necessário enrijecedor

Sheet Ligação Chapa de Cabeça
M1: a' | N1: =K6+0.5*K8 -> 46
A2: NSd (Esforço Axial) | B2: 0 | C2: kN | F2: y (cm) | H2: 5.959428897 | J2: Fy da Chapa | K2: 25 | L2: kN/cm² | M2: e1/2 | N2: =K4/2 -> 38.5
A3: Msd (Momento Fletor) | B3: 7500 | C3: kN.cm | F3: Momento Estático Superior | H3: =SUM(G11:G26) -> 269.9124242 | J3: Espessura da Chapa | K3: 16 | L3: mm | M3: b+0,5db | N3: =K7+0.5*K8 -> 36
A4: VSd (Esforço Cortante) | B4: 125 | C4: kN | F4: Momento Estático Inferior | H4: =((B5/10)*H2^2)/2 -> 269.9124251 | J4: e1 | K4: 77 | L4: mm | M4: p | N4: =MIN(N2:N3)+MIN(N3,K5) -> 72
A5: B (Largura da Chapa) | B5: 152 | C5: mm | F5: Delta | H5: =H4-H3 -> 8.785001455e-07 | J5: e2 | K5: 37 | L5: mm | M5: d'(mm) | N5: =K8+1.6 -> 13.6
A6: A( Altura da chapa) | B6: 445 | C6: mm | F6: Ix (cm4) | H6: =((B5/10)*H2^3)/3+SUM(H11:H26) -> 9077.11314 | J6: a | K6: 40 | L6: mm | M6: delta | N6: =(N4-N5)/N4 -> 0.8111111111
A7: Qtd de parafusos por linha | B7: 2 | C7: Unid | J7: b | K7: 30 | L7: mm | M7: Ma(kN.cm) | N7: =((1.5*(N4/10)*((K3/10)^2)*K2)/6)/1.1 -> 104.7272727
J8: db | K8: 12 | L8: mm | M8: alfa | N8: =((MAX(I11:I26)*((K7-0.5*K8)/10))-N7)/(N6*N7) -> 0.3883508276
M9: =IF(N8<=1,"APROVADO","REPROVADO") -> APROVADO
A10: Linha | B10: dy(mm) | C10: Diam. (mm) | D10: Fu(kN/cm²) | E10: Cisalh. No plano de Rosca? | F10: Área (cm²) | G10: Mom. Estático | H10: Ai(dy-y)² | I10: Tração por parafuso (kN) | J10: Admissível(kN) | K10: Tração Adicional devido ao Efeito Alavanca | L10: Cisalhamento Por parafuso | M10: Adm. | N10: Esforços Combinados: | O10: Status
A11: d1 | B11: 40 | C11: 16 | D11: 82.5 | E11: SIM | F11: =IF(C11="","",((((C11/10)^2)*PI())/4)*$B$7) -> 4.021238597 | G11: =IF(B11="","",IF(B11<$B$6/6,0,((B11/10)-$H$2)*F11)) -> 0 | H11: =IF(B11="","",IF(B11<$B$6/6,0,(((B11/10)-$H$2)^2)*F11)) -> 0 | I11: =IF(B11="","",IF(H11=0,0,($B$3/$H$6)*((B11/10)-$H$2))*(F11/$B$7)+($B$2/(COUNTIF($B$11:$B$26,">0")*$B$7))) -> 0 | J11: =IF(B11="","",(0.75*(F11/$B$7)*D11)/1.35) -> 92.15338451 | K11: =IF(B11="","",IF($N$8>=0,IF((I11*(($K$7-0.5*$K$8)/10)-$N$7)/($K$6+0.5*$K$8)<0,0,(I11*(($K$7-0.5*$K$8)/10)-$N$7)/(($K$6+0.5*$K$8)/10)),0)) -> 0 | L11: =IF(B11="","",$B$4/($B$7*(COUNTIF($B$11:$B$26,">0")))) -> 15.625 | M11: =IF(B11="","",IF(E11="SIM",(0.4*(F11/$B$7)*D11)/1.35,(0.5*(F11/$B$7)*D11)/1.35)) -> 49.14847174 | N11: =IF(B11="","",((I11+K11)/J11)^2+(L11/M11)^2) -> 0.1010694764 | O11: =IF(B11="","",IF(OR($H$5>0.001,$H$5<-0.001),"CALCULAR Y",IF(N11<1,"APROVADO","REPROVADO"))) -> APROVADO
A12: d2 | B12: 107 | C12: 16 | D12: 82.5 | E12: SIM | F12: 4.021238597 | G12: 19.06296749 | H12: 90.36935282 | I12: 7.875425477 | J12: 92.15338451 | K12: 0 | L12: 15.625 | M12: 49.14847174 | N12: =IF(B12="","",((I12+K12)/J12)^2+(L12/M12)^2) -> 0.1083728829 | O12: APROVADO
A13: d3 | B13: 338 | C13: 16 | D13: 82.5 | E13: SIM | F13: 4.021238597 | G13: 111.9535791 | H13: 3116.851578 | I13: =IF(B13="","",IF(H13=0,0,($B$3/$H$6)*((B13/10)-$H$2))*(F13/$B$7)+($B$2/(COUNTIF($B$11:$B$26,">0")*$B$7))) -> 46.25103984 | J13: 92.15338451 | K13: 1.364178891 | L13: 15.625 | M13: 49.14847174 | N13: 0.368043488 | O13: APROVADO
A14: d4 | B14: 405 | C14: 16 | D14: 82.5 | E14: SIM | F14: 4.021238597 | G14: 138.8958777 | H14: 4797.542939 | I14: 57.38162929 | J14: 92.15338451 | K14: 7.171442951 | L14: 15.625 | M14: 49.14847174 | N14: 0.5917640466 | O14: APROVADO
A15: d5 | C15: =IF(B15="","",$K$8) -> 
A16: d6
A17: d7
A18: d8
A19: d9
A20: d10
A21: d11
A22: d12
A23: d13
A24: d14
A25: d15
A26: d16
L27: =IF(B27="","",IF(E27="SIM",(0.4*(F27/$B$7)*D27)/1.35,(0.5*(F27/$B$7)*D27)/1.35)) -> 
A29: Verificação da Solda Chapa-Viga
A30: Selecione o Perfil | B30: d | C30: bf | D30: tw | E30: tf | F30: h | G30: d’ | H30: Área | I30: Ix | J30: Wx
A31: W 150 x 18,0 | B31: =IF($A31="","",VLOOKUP($A31,'Tabela de Perfis'!$A:$AC,3,0)) -> 153 | C31: =IF($A31="","",VLOOKUP($A31,'Tabela de Perfis'!$A:$AC,4,0)) -> 102 | D31: =IF($A31="","",VLOOKUP($A31,'Tabela de Perfis'!$A:$AC,5,0)) -> 5.8 | E31: =IF($A31="","",VLOOKUP($A31,'Tabela de Perfis'!$A:$AC,6,0)) -> 7.1 | F31: =IF($A31="","",VLOOKUP($A31,'Tabela de Perfis'!$A:$AC,7,0)) -> 139 | G31: =IF($A31="","",VLOOKUP($A31,'Tabela de Perfis'!$A:$AC,8,0)) -> 119 | H31: =IF($A31="","",VLOOKUP($A31,'Tabela de Perfis'!$A:$AC,9,0)) -> 23.4 | I31: =IF($A31="","",VLOOKUP($A31,'Tabela de Perfis'!$A:$AC,11,0)) -> 939 | J31: =IF($A31="","",VLOOKUP($A31,'Tabela de Perfis'!$A:$AC,12,0)) -> 122.8
E32: =K3 -> 16
A33: Dados do Metal de Solda
A34: Fw | B34: 48.5 | C34: kN/cm²
A35: Perna do Filete | B35: 6 | C35: mm
A36: Perna mínima | B36: =IF(AND(MIN(E31:E32)<=19,MIN(E31:E32)>12.5),6,IF(AND(MIN(E31:E32)<=12.5,MIN(E31:E32)>6.35),5,IF(MIN(E31:E32)<=6.35,3,8))) -> 5 | C36: mm
A38: 1-Ruptura da Solda na Seção Efetiva
A39: Fw, Rd | B39: =0.6*(0.707*B35/10*((2*C31-2*E31-D31)/10)*B34/1.35) -> 168.2471467 | C39: kN
A40: Ft, Sd | B40: =(B3/J31)*(C31/10*E31/10) -> 442.3045603 | C40: kN
A42: 2-Escoamento do Metal Base
A43: Ft, Rd | B43: =(0.6*(B35/10*(2*C31-2*E31-D31)/10*K2/1.1)) -> 150.5454545 | C43: kN
A44: Ft, Sd | B44: =B40 -> 442.3045603 | C44: kN
A46: Status | B46: =IF(AND(B44<B43,B40<B39,B36<=B35),"APROVADO","REPROVADO") -> REPROVADO

Sheet Placa de Base 1
A2: Cargas Atuantes | D2: Dados do chumbador
A3: Compressão (kN) | B3: =1.4*6.59 -> 9.226 | D3: Fy (kN/cm²) | E3: 25
A4: Carga Horizontal (kN) | B4: 1.995 | D4: Diâmetro (mm) | E4: 16
D5: Nrd (kN) | E5: =2*(0.4*(((E4/10)^2)*PI()/4)*E3)/1.1 -> 36.55671451
A6: Dados da Chapa de Base | D6: STATUS | E6: =IF(E5>=B4,"APROVADO","REPROVADO") -> APROVADO
A7: Fy (kN/cm²) | B7: 25
A8: B (mm) | B8: 250 | D8: fck concreto (kN/cm²) | E8: 2
A9: C (mm) | B9: 350
A10: P1 | B10: W 250 x 28,4 | D10: fc (kN/cm²) | E10: =B3/(B8/10*B9/10) -> 0.010544
A11: m (mm) | B11: =(B9-VLOOKUP(B10,'Tabela de Perfis'!A:C,3,0)*0.95)/2 -> 51.5 | D11: fc máx (kN/cm²) | E11: =E8/1.4 -> 1.428571429
A12: n(mm) | B12: =(B8-VLOOKUP(B10,'Tabela de Perfis'!A:D,4,0)*0.8)/2 -> 84.2 | D12: Espessura mínima (mm) | E12: =1.83*(B14/10)*SQRT(E10/B7)*10 -> 3.164432786
A13: n' (mm) | B13: =(SQRT(VLOOKUP(B10,'Tabela de Perfis'!A:J,3,0)*(VLOOKUP(B10,'Tabela de Perfis'!A:H,4,0))))/4 -> 40.71240597
A14: L (mm) | B14: =MAX(B11:B13) -> 84.2
A15: Espessura (t) | B15: 16
A16: STATUS | B16: =IF(AND(B15>=E12,E11>=E10),"APROVADO","REPROVADO") -> APROVADO
A19: Peso total (kg) | B19: =B8/1000*B9/1000*B15/1000*7850 -> 10.99

Sheet Placa de Base 2
A2: Cargas Atuantes | D2: Dados do chumbador
A3: Compressão (kN) | B3: 400 | D3: Fy (kN/cm²) | E3: 25
A4: Carga Horizontal (kN) | B4: 40 | D4: Diâmetro (mm) | E4: 19
D5: Nrd (kN) | E5: =2*(0.4*(((E4/10)^2)*PI()/4)*E3)/1.1 -> 51.55067945
A6: Dados da Chapa de Base | D6: STATUS | E6: =IF(E5>=B4,"APROVADO","REPROVADO") -> APROVADO
A7: Fy (kN/cm²) | B7: 25
A8: B (mm) | B8: 225 | D8: fck concreto (kN/cm²) | E8: 2
A9: C (mm) | B9: 250
A10: P1 | B10: W 150 x 22,5 (H) | D10: fc (kN/cm²) | E10: =B3/(B8/10*B9/10) -> 0.7111111111
A11: Espessura do Enrij. (mm) | B11: 8 | D11: fc máx (kN/cm²) | E11: =E8/1.4 -> 1.428571429
A12: Espessura da chapa (mm) | B12: 16
A13: STATUS | B13: =IF(B12>=MAX(B17,B24,E20),"APROVADO","REPROVADO") -> APROVADO
A15: Setor 1 | D15: Setor 3
A16: L (cm) | B16: =((B9-(VLOOKUP(B10,'Tabela de Perfis'!A:D,4,0)+2*B11))/2)/10 -> 4.1 | D16: b | E16: =(VLOOKUP('Placa de Base 2'!B10,'Tabela de Perfis'!A:D,4,0)-VLOOKUP(B10,'Tabela de Perfis'!A:F,5,0))/2 -> 73.1 | L16: a/b | M16: 0.25 | N16: 0.5 | O16: 0.75 | P16: 1 | Q16: 1.5 | R16: 2 | S16: 3
A17: Espessura mínima (mm) | B17: =SQRT((6*((E10*B16^2)/2)*1.1)/E3)*10 -> 12.56144365 | D17: a | E17: =VLOOKUP(B10,'Tabela de Perfis'!A:G,7,0) -> 139 | L17: Beta-1 | M17: 0.05 | N17: 0.19 | O17: 0.39 | P17: 0.67 | Q17: 1.28 | R17: 1.8 | S17: 2.5
D18: a/b | E18: =E17/E16 -> 1.901504788
A19: Setor 2 | D19: Beta-2 | E19: =1.5804*(E18^2)-2.9839*E18+1.4657 -> 1.506084476
A20: b | B20: =(B9-VLOOKUP(B10,'Tabela de Perfis'!A:C,3,0))/2 -> 49 | D20: Espessura mínima (mm) | E20: =SQRT(E19*E10*1.1/E3)*(E16/10)*10 -> 15.86854521
A21: a | B21: =VLOOKUP(B10,'Tabela de Perfis'!A:D,4,0) -> 152
A22: a/b | B22: =B21/B20 -> 3.102040816 | D22: Peso total | E22: =B9/1000*B8/1000*B12/1000*7850+B11/1000*0.1*B9/1000*7850*2-B20/1000*0.1*B11/1000*2*7850 -> 9.58956
A23: Beta-1 | B23: =IF(B22>=3,2.5,-0.1535*(B22^3)+0.6806*(B22^2)+0.1878*B22-0.0481) -> 2.5
A24: Espessura mínima (mm) | B24: =SQRT(B23*E10*1.1/E3)*(B20/10)*10 -> 13.70443562
L32: a/b | M32: 1 | N32: 1.2 | O32: 1.4 | P32: 1.6 | Q32: 1.8 | R32: 2
L33: Beta-2 | M33: 0.05 | N33: 0.19 | O33: 0.39 | P33: 0.67 | Q33: 1.28 | R33: 1.8

Sheet Placa de Base 3
A2: Cargas Atuantes | D2: Dados do chumbador
A3: Compressão (kN) | B3: 400 | D3: Fy (kN/cm²) | E3: 25
A4: Carga Horizontal (kN) | B4: 40 | D4: Diâmetro (mm) | E4: 19
D5: Nrd (kN) | E5: =4*(0.4*(((E4/10)^2)*PI()/4)*E3)/1.1 -> 103.1013589
A6: Dados da Chapa de Base | D6: STATUS | E6: =IF(E5>=B4,"APROVADO","REPROVADO") -> APROVADO
A7: Fy (kN/cm²) | B7: 25
A8: B (mm) | B8: 225 | D8: fck concreto (kN/cm²) | E8: 2
A9: C (mm) | B9: 250
A10: P1 | B10: W 150 x 22,5 (H) | D10: fc (kN/cm²) | E10: =B3/(B8/10*B9/10) -> 0.7111111111
A11: Espessura dos Enrij. (mm) | B11: 8 | D11: fc máx (kN/cm²) | E11: =E8/1.4 -> 1.428571429
A12: Espessura da chapa (mm) | B12: 10
A13: STATUS | B13: =IF(B12>=MAX(F28,B20,E20),"APROVADO","REPROVADO") -> APROVADO
A15: Setor 1 | D15: Setor 3
A16: b | B16: =B8-(VLOOKUP(B10,'Tabela de Perfis'!A:D,4,0)+2*B11) -> 57 | D16: b | E16: =(VLOOKUP('Placa de Base 3'!B10,'Tabela de Perfis'!A:D,4,0)-VLOOKUP(B10,'Tabela de Perfis'!A:F,5,0))/2 -> 73.1 | L16: a/b | M16: 0.25 | N16: 0.5 | O16: 0.75 | P16: 1 | Q16: 1.5 | R16: 2 | S16: 3
A17: a | B17: =VLOOKUP(B10,'Tabela de Perfis'!A:C,3,0)/2-B11 -> 68 | D17: a | E17: =VLOOKUP(B10,'Tabela de Perfis'!A:G,7,0)/2-B11/2 -> 65.5 | L17: Beta-1 | M17: 0.05 | N17: 0.19 | O17: 0.39 | P17: 0.67 | Q17: 1.28 | R17: 1.8 | S17: 2.5
A18: a/b | B18: =B17/B16 -> 1.192982456 | D18: a/b | E18: =E17/E16 -> 0.8960328317
A19: Beta-1 | B19: =IF(B18>=3,2.5,-0.1535*(B18^3)+0.6806*(B18^2)+0.1878*B18-0.0481) -> 0.8839551986 | D19: Beta-2 | E19: =1.5804*(E18^2)-2.9839*E18+1.4657 -> 0.06089102348
A20: Espessura mínima (mm) | B20: =SQRT(B19*E10*1.1/E3)*(B16/10)*10 -> 9.479491759 | D20: Espessura mínima (mm) | E20: =SQRT(E19*E10*1.1/E3)*(E16/10)*10 -> 3.190722864
A22: Setor 2 | D22: Setor 4
A23: b | B23: =(B9-VLOOKUP(B10,'Tabela de Perfis'!A:C,3,0))/2 -> 49 | D23: b | E23: =(B8-(VLOOKUP(B10,'Tabela de Perfis'!A:D,4,0)+2*B11))/2 -> 28.5
A24: a | B24: =VLOOKUP(B10,'Tabela de Perfis'!A:D,4,0)/2-B11/2 -> 72 | D24: a | E24: =B23 -> 49
A25: a/b | B25: =B24/B23 -> 1.469387755 | D25: a/b | E25: =E24/E23 -> 1.719298246
A26: Beta-1 | B26: =IF(B25>=3,2.5,-0.1535*(B25^3)+0.6806*(B25^2)+0.1878*B25-0.0481) -> 1.210347443 | D26: Beta-1 | E26: =IF(E25>=3,2.5,-0.1535*(E25^3)+0.6806*(E25^2)+0.1878*E25-0.0481) -> 1.506507466
A27: Espessura mínima (mm) | B27: =SQRT(B26*E10*1.1/E3)*(B23/10)*10 -> 9.53555947 | D27: Espessura mínima (mm) | E27: =SQRT(E26*E10*1.1/E3)*(E23/10)*10 -> 6.187647642
A29: Peso total | B29: =B8/1000*B9/1000*B12/1000*7850+0.1*B9/1000*B11/1000*7850*2-B23/1000*0.1*B11/1000*1*7850+B16/1000*0.1*B11/1000*3*7850+E16/1000*0.1*B11/1000*7850 -> 8.780853
L32: a/b | M32: 1 | N32: 1.2 | O32: 1.4 | P32: 1.6 | Q32: 1.8 | R32: 2
L33: Beta-2 | M33: 0.05 | N33: 0.19 | O33: 0.39 | P33: 0.67 | Q33: 1.28 | R33: 1.8

Sheet Placa de Base 4
A2: Cargas Atuantes | D2: Dados do chumbador
A3: Compressão (kN) | B3: 32.7 | D3: Fy (kN/cm²) | E3: 25
A4: Carga Horizontal (kN) | B4: 11.7 | D4: Diâmetro (mm) | E4: 16
A5: Mx (kN.cm) | B5: 1028 | D5: a1 (mm) | E5: 50
D6: Qtd (n) | E6: 2
D7: e (mm) | E7: 100
A8: Dados da Chapa de Base | D8: NtSd | E8: =B22 -> 25.3109737
A9: Fy (kN/cm²) | B9: 25 | D9: NtRd | E9: =E6*2*(0.75*E3*((E4/10)^2)*PI()/4)/1.1 -> 137.0876794
A10: B (mm) | B10: 200 | D10: VSd | E10: =B4/(E6*2) -> 2.925
A11: C (mm) | B11: 250 | D11: VRd | E11: =E9*0.53 -> 72.6564701
A12: P1 | B12: W 150 x 22,5 (H) | D12: Esforços Combinados | E12: =SQRT((E8/E9)^2+(E10/E11)^2) -> 0.1889714781
A13: Espessura da chapa (mm) | B13: 16 | D13: STATUS | E13: =IF(E12<=1,"APROVADO","REPROVADO") -> APROVADO
A14: STATUS | B14: =IF(B13>=B24,"APROVADO","REPROVADO") -> APROVADO
A15: Eixo X-X
A16: fc compressão máx (kN/cm²) | B16: =B3/(B10/10*B11/10)+(6*B5/(B10/10*(B11/10)^2)) -> 0.55884 | D16: fck concreto (kN/cm²) | E16: 2
A17: fc tração máx (kN/cm²) | B17: =ABS(B3/(B10/10*B11/10)-(6*B5/(B10/10*(B11/10)^2))) -> 0.42804 | D17: fc (kN/cm²) | E17: =B16 -> 0.55884
A18: c (cm) | B18: =(B11/10)/((B17/B16)+1) -> 14.15673638 | D18: fc máx (kN/cm²) | E18: =E16/1.4 -> 1.428571429
A19: c/3 (cm) | B19: =B18/3 -> 4.718912127 | D19: STATUS | E19: =IF(E17<=E18,"APROVADO","REPROVADO") -> APROVADO
A20: a (cm) | B20: =B11/20-B19 -> 7.781087873
A21: y (cm) | B21: =(B11-E5-B19*10)/10 -> 15.28108787
A22: Tração / Chumbador (kN) | B22: =((B5-B3*B20)/B21)/E6 -> 25.3109737
A23: Momento Fletor na aba (kN.cm) | B23: =((((B11-VLOOKUP(B12,'Tabela de Perfis'!A:C,3,0))/2)/10)^2)*E17/2 -> 6.7088742
A24: Espessura mínima da chapa(mm) | B24: =SQRT(6.6*B23/B9)*10 -> 13.30842887
A25: Peso total | B25: =B10/1000*B11/1000*B13/1000*7850 -> 6.28

Sheet Calcular Lista
AB1: =SUBTOTAL(9,AB3:AB5936) -> 364
C2: Barra | D2: Perfil | E2: LBx (mm) | F2: LBy (mm) | G2: N(kN) | H2: Vx(kN) | I2: Vy(kN) | J2: Mx(kN.cm) | K2: My(kN.cm) | L2: kx | M2: ky | N2: d (mm) | O2: Resultado | P2: λx | Q2: λy | R2: ηN (Tração) | S2: ηN (Comp.) | T2: ηMx | U2: ηMy | V2: ηVx | W2: ηVy | X2: η N.Mx.My | Y2: % | Z2: Lb(mm) | AA2: L total(mm) | AB2: Peso
C3: 1 | D3: W 200 x 15,0 | E3: 6000 | F3: 1200 | G3: -100 | H3: 0 | I3: 40 | J3: 3200 | K3: 0 | L3: 1 | M3: 1 | N3: 0 | O3: APROVADO | P3: 0.3658536585 | Q3: 0.2830188679 | R3: 0 | S3: 0.2407968439 | T3: 0.7366288938 | U3: 0 | V3: 0 | W3: 0.2471632401 | X3: 0.9774257377 | Y3: 0.9774257377 | Z3: 1200 | AA3: 6000 | AB3: =IF(C3="","",VLOOKUP(D3,'Tabela de Perfis'!A:B,2,0)*'Calcular Lista'!AA3/1000) -> 90
C4: 2 | D4: W 150 x 13,0 | E4: 6000 | F4: 1200 | G4: -25 | H4: 0 | I4: 55 | J4: 1600 | K4: 0 | L4: 1 | M4: 1 | N4: 0 | O4: APROVADO | P4: 0.4854368932 | Q4: 0.2702702703 | R4: 0 | S4: 0.0939948649 | T4: 0.5546080928 | U4: 0 | V4: 0 | W4: 0.4592560204 | X4: 0.6016055252 | Y4: 0.6016055252 | Z4: 1200 | AA4: 6000 | AB4: =IF(C4="","",VLOOKUP(D4,'Tabela de Perfis'!A:B,2,0)*'Calcular Lista'!AA4/1000) -> 78
C5: 3 | D5: W 310 x 21,0 | E5: 5000 | F5: 1200 | G5: -23 | H5: 0 | I5: 12 | J5: 7500 | K5: 0 | L5: 1 | M5: 1 | N5: 0 | O5: APROVADO | P5: 0.212404418 | Q5: 0.3157894737 | R5: 0 | S5: 0.03586022311 | T5: 0.9091732142 | U5: 0 | V5: 0 | W5: 0.04126584867 | X5: 0.9271033257 | Y5: 0.9271033257 | Z5: 1200 | AA5: 5000 | AB5: =IF(C5="","",VLOOKUP(D5,'Tabela de Perfis'!A:B,2,0)*'Calcular Lista'!AA5/1000) -> 105
C6: 4 | D6: W 150 x 13,0 | E6: 7000 | F6: 1200 | G6: 40 | H6: 0 | I6: 69 | J6: 1200 | K6: 0 | L6: 0.5 | M6: 0.5 | N6: 0 | O6: APROVADO | P6: 0.188781014 | Q6: 0.09009009009 | R6: 0.07682905535 | S6: 0 | T6: 0.4159560696 | U6: 0 | V6: 0 | W6: 0.5761575529 | X6: 0.4543705973 | Y6: 0.5761575529 | Z6: 1200 | AA6: 7000 | AB6: =IF(C6="","",VLOOKUP(D6,'Tabela de Perfis'!A:B,2,0)*'Calcular Lista'!AA6/1000) -> 91
AB7: =IF(C7="","",VLOOKUP(D7,'Tabela de Perfis'!A:B,2,0)*'Calcular Lista'!AA7/1000) -> 
AB8: =IF(C8="","",VLOOKUP(D8,'Tabela de Perfis'!A:B,2,0)*'Calcular Lista'!AA8/1000) -> 
AB9: =IF(C9="","",VLOOKUP(D9,'Tabela de Perfis'!A:B,2,0)*'Calcular Lista'!AA9/1000) -> 
AB10: =IF(C10="","",VLOOKUP(D10,'Tabela de Perfis'!A:B,2,0)*'Calcular Lista'!AA10/1000) -> 
AB11: =IF(C11="","",VLOOKUP(D11,'Tabela de Perfis'!A:B,2,0)*'Calcular Lista'!AA11/1000) -> 
AB12: =IF(C12="","",VLOOKUP(D12,'Tabela de Perfis'!A:B,2,0)*'Calcular Lista'!AA12/1000) -> 
AB13: =IF(C13="","",VLOOKUP(D13,'Tabela de Perfis'!A:B,2,0)*'Calcular Lista'!AA13/1000) -> 
AB14: =IF(C14="","",VLOOKUP(D14,'Tabela de Perfis'!A:B,2,0)*'Calcular Lista'!AA14/1000) -> 
AB15: =IF(C15="","",VLOOKUP(D15,'Tabela de Perfis'!A:B,2,0)*'Calcular Lista'!AA15/1000) -> 
AB16: =IF(C16="","",VLOOKUP(D16,'Tabela de Perfis'!A:B,2,0)*'Calcular Lista'!AA16/1000) -> 
AB17: =IF(C17="","",VLOOKUP(D17,'Tabela de Perfis'!A:B,2,0)*'Calcular Lista'!AA17/1000) -> 
AB18: =IF(C18="","",VLOOKUP(D18,'Tabela de Perfis'!A:B,2,0)*'Calcular Lista'!AA18/1000) -> 
AB19: =IF(C19="","",VLOOKUP(D19,'Tabela de Perfis'!A:B,2,0)*'Calcular Lista'!AA19/1000) -> 
AB20: =IF(C20="","",VLOOKUP(D20,'Tabela de Perfis'!A:B,2,0)*'Calcular Lista'!AA20/1000) -> 
AB21: =IF(C21="","",VLOOKUP(D21,'Tabela de Perfis'!A:B,2,0)*'Calcular Lista'!AA21/1000) -> 
AB22: =IF(C22="","",VLOOKUP(D22,'Tabela de Perfis'!A:B,2,0)*'Calcular Lista'!AA22/1000) -> 
AB23: =IF(C23="","",VLOOKUP(D23,'Tabela de Perfis'!A:B,2,0)*'Calcular Lista'!AA23/1000) -> 
AB24: =IF(C24="","",VLOOKUP(D24,'Tabela de Perfis'!A:B,2,0)*'Calcular Lista'!AA24/1000) -> 
AB25: =IF(C25="","",VLOOKUP(D25,'Tabela de Perfis'!A:B,2,0)*'Calcular Lista'!AA25/1000) -> 
AB26: =IF(C26="","",VLOOKUP(D26,'Tabela de Perfis'!A:B,2,0)*'Calcular Lista'!AA26/1000) -> 
AB27: =IF(C27="","",VLOOKUP(D27,'Tabela de Perfis'!A:B,2,0)*'Calcular Lista'!AA27/1000) -> 
AB28: =IF(C28="","",VLOOKUP(D28,'Tabela de Perfis'!A:B,2,0)*'Calcular Lista'!AA28/1000) -> 
AB29: =IF(C29="","",VLOOKUP(D29,'Tabela de Perfis'!A:B,2,0)*'Calcular Lista'!AA29/1000) -> 
AB30: =IF(C30="","",VLOOKUP(D30,'Tabela de Perfis'!A:B,2,0)*'Calcular Lista'!AA30/1000) -> 
AB31: =IF(C31="","",VLOOKUP(D31,'Tabela de Perfis'!A:B,2,0)*'Calcular Lista'!AA31/1000) -> 
AB32: =IF(C32="","",VLOOKUP(D32,'Tabela de Perfis'!A:B,2,0)*'Calcular Lista'!AA32/1000) -> 
AB33: =IF(C33="","",VLOOKUP(D33,'Tabela de Perfis'!A:B,2,0)*'Calcular Lista'!AA33/1000) -> 
AB34: =IF(C34="","",VLOOKUP(D34,'Tabela de Perfis'!A:B,2,0)*'Calcular Lista'!AA34/1000) -> 
AB35: =IF(C35="","",VLOOKUP(D35,'Tabela de Perfis'!A:B,2,0)*'Calcular Lista'!AA35/1000) -> 
AB36: =IF(C36="","",VLOOKUP(D36,'Tabela de Perfis'!A:B,2,0)*'Calcular Lista'!AA36/1000) -> 
AB37: =IF(C37="","",VLOOKUP(D37,'Tabela de Perfis'!A:B,2,0)*'Calcular Lista'!AA37/1000) -> 
AB38: =IF(C38="","",VLOOKUP(D38,'Tabela de Perfis'!A:B,2,0)*'Calcular Lista'!AA38/1000) -> 
AB39: =IF(C39="","",VLOOKUP(D39,'Tabela de Perfis'!A:B,2,0)*'Calcular Lista'!AA39/1000) -> 
AB40: =IF(C40="","",VLOOKUP(D40,'Tabela de Perfis'!A:B,2,0)*'Calcular Lista'!AA40/1000) -> 
AB41: =IF(C41="","",VLOOKUP(D41,'Tabela de Perfis'!A:B,2,0)*'Calcular Lista'!AA41/1000) -> 
AB42: =IF(C42="","",VLOOKUP(D42,'Tabela de Perfis'!A:B,2,0)*'Calcular Lista'!AA42/1000) -> 
AB43: =IF(C43="","",VLOOKUP(D43,'Tabela de Perfis'!A:B,2,0)*'Calcular Lista'!AA43/1000) -> 
AB44: =IF(C44="","",VLOOKUP(D44,'Tabela de Perfis'!A:B,2,0)*'Calcular Lista'!AA44/1000) -> 
AB45: =IF(C45="","",VLOOKUP(D45,'Tabela de Perfis'!A:B,2,0)*'Calcular Lista'!AA45/1000) -> 
AB46: =IF(C46="","",VLOOKUP(D46,'Tabela de Perfis'!A:B,2,0)*'Calcular Lista'!AA46/1000) -> 
AB47: =IF(C47="","",VLOOKUP(D47,'Tabela de Perfis'!A:B,2,0)*'Calcular Lista'!AA47/1000) -> 
AB48: =IF(C48="","",VLOOKUP(D48,'Tabela de Perfis'!A:B,2,0)*'Calcular Lista'!AA48/1000) -> 
AB49: =IF(C49="","",VLOOKUP(D49,'Tabela de Perfis'!A:B,2,0)*'Calcular Lista'!AA49/1000) -> 
AB50: =IF(C50="","",VLOOKUP(D50,'Tabela de Perfis'!A:B,2,0)*'Calcular Lista'!AA50/1000) -> 
AB51: =IF(C51="","",VLOOKUP(D51,'Tabela de Perfis'!A:B,2,0)*'Calcular Lista'!AA51/1000) -> 
AB52: =IF(C52="","",VLOOKUP(D52,'Tabela de Perfis'!A:B,2,0)*'Calcular Lista'!AA52/1000) -> 
AB53: =IF(C53="","",VLOOKUP(D53,'Tabela de Perfis'!A:B,2,0)*'Calcular Lista'!AA53/1000) -> 
AB54: =IF(C54="","",VLOOKUP(D54,'Tabela de Perfis'!A:B,2,0)*'Calcular Lista'!AA54/1000) -> 
AB55: =IF(C55="","",VLOOKUP(D55,'Tabela de Perfis'!A:B,2,0)*'Calcular Lista'!AA55/1000) -> 
AB56: =IF(C56="","",VLOOKUP(D56,'Tabela de Perfis'!A:B,2,0)*'Calcular Lista'!AA56/1000) -> 
AB57: =IF(C57="","",VLOOKUP(D57,'Tabela de Perfis'!A:B,2,0)*'Calcular Lista'!AA57/1000) -> 
AB58: =IF(C58="","",VLOOKUP(D58,'Tabela de Perfis'!A:B,2,0)*'Calcular Lista'!AA58/1000) -> 
AB59: =IF(C59="","",VLOOKUP(D59,'Tabela de Perfis'!A:B,2,0)*'Calcular Lista'!AA59/1000) -> 
AB60: =IF(C60="","",VLOOKUP(D60,'Tabela de Perfis'!A:B,2,0)*'Calcular Lista'!AA60/1000) -> 
AB61: =IF(C61="","",VLOOKUP(D61,'Tabela de Perfis'!A:B,2,0)*'Calcular Lista'!AA61/1000) -> 
AB62: =IF(C62="","",VLOOKUP(D62,'Tabela de Perfis'!A:B,2,0)*'Calcular Lista'!AA62/1000) -> 
AB63: =IF(C63="","",VLOOKUP(D63,'Tabela de Perfis'!A:B,2,0)*'Calcular Lista'!AA63/1000) -> 
AB64: =IF(C64="","",VLOOKUP(D64,'Tabela de Perfis'!A:B,2,0)*'Calcular Lista'!AA64/1000) -> 
AB65: =IF(C65="","",VLOOKUP(D65,'Tabela de Perfis'!A:B,2,0)*'Calcular Lista'!AA65/1000) -> 
AB66: =IF(C66="","",VLOOKUP(D66,'Tabela de Perfis'!A:B,2,0)*'Calcular Lista'!AA66/1000) -> 
AB67: =IF(C67="","",VLOOKUP(D67,'Tabela de Perfis'!A:B,2,0)*'Calcular Lista'!AA67/1000) -> 
AB68: =IF(C68="","",VLOOKUP(D68,'Tabela de Perfis'!A:B,2,0)*'Calcular Lista'!AA68/1000) -> 
AB69: =IF(C69="","",VLOOKUP(D69,'Tabela de Perfis'!A:B,2,0)*'Calcular Lista'!AA69/1000) -> 
AB70: =IF(C70="","",VLOOKUP(D70,'Tabela de Perfis'!A:B,2,0)*'Calcular Lista'!AA70/1000) -> 
AB71: =IF(C71="","",VLOOKUP(D71,'Tabela de Perfis'!A:B,2,0)*'Calcular Lista'!AA71/1000) -> 
AB72: =IF(C72="","",VLOOKUP(D72,'Tabela de Perfis'!A:B,2,0)*'Calcular Lista'!AA72/1000) -> 
AB73: =IF(C73="","",VLOOKUP(D73,'Tabela de Perfis'!A:B,2,0)*'Calcular Lista'!AA73/1000) -> 
AB74: =IF(C74="","",VLOOKUP(D74,'Tabela de Perfis'!A:B,2,0)*'Calcular Lista'!AA74/1000) -> 
AB75: =IF(C75="","",VLOOKUP(D75,'Tabela de Perfis'!A:B,2,0)*'Calcular Lista'!AA75/1000) -> 
AB76: =IF(C76="","",VLOOKUP(D76,'Tabela de Perfis'!A:B,2,0)*'Calcular Lista'!AA76/1000) -> 
AB77: =IF(C77="","",VLOOKUP(D77,'Tabela de Perfis'!A:B,2,0)*'Calcular Lista'!AA77/1000) -> 
AB78: =IF(C78="","",VLOOKUP(D78,'Tabela de Perfis'!A:B,2,0)*'Calcular Lista'!AA78/1000) -> 
AB79: =IF(C79="","",VLOOKUP(D79,'Tabela de Perfis'!A:B,2,0)*'Calcular Lista'!AA79/1000) -> 
AB80: =IF(C80="","",VLOOKUP(D80,'Tabela de Perfis'!A:B,2,0)*'Calcular Lista'!AA80/1000) -> 
AB81: =IF(C81="","",VLOOKUP(D81,'Tabela de Perfis'!A:B,2,0)*'Calcular Lista'!AA81/1000) -> 
AB82: =IF(C82="","",VLOOKUP(D82,'Tabela de Perfis'!A:B,2,0)*'Calcular Lista'!AA82/1000) -> 
AB83: =IF(C83="","",VLOOKUP(D83,'Tabela de Perfis'!A:B,2,0)*'Calcular Lista'!AA83/1000) -> 
AB84: =IF(C84="","",VLOOKUP(D84,'Tabela de Perfis'!A:B,2,0)*'Calcular Lista'!AA84/1000) -> 
AB85: =IF(C85="","",VLOOKUP(D85,'Tabela de Perfis'!A:B,2,0)*'Calcular Lista'!AA85/1000) -> 
AB86: =IF(C86="","",VLOOKUP(D86,'Tabela de Perfis'!A:B,2,0)*'Calcular Lista'!AA86/1000) -> 
AB87: =IF(C87="","",VLOOKUP(D87,'Tabela de Perfis'!A:B,2,0)*'Calcular Lista'!AA87/1000) -> 
AB88: =IF(C88="","",VLOOKUP(D88,'Tabela de Perfis'!A:B,2,0)*'Calcular Lista'!AA88/1000) -> 
AB89: =IF(C89="","",VLOOKUP(D89,'Tabela de Perfis'!A:B,2,0)*'Calcular Lista'!AA89/1000) -> 
AB90: =IF(C90="","",VLOOKUP(D90,'Tabela de Perfis'!A:B,2,0)*'Calcular Lista'!AA90/1000) -> 

Sheet Tabela de Perfis
A1: BITOLA | B1: MASSA LINEAR | C1: d | D1: bf | E1: ESPESSURA | G1: h | H1: d’ | I1: ÁREA | J1: PERIMETRO | K1: EIXO X-X | O1: EIXO Y-Y | S1: rt | T1: It | U1: ESBELTEZ | X1: Cw | Y1: u | Z1: ÁREA REDUZIDA | AA1: *CARGA ADM EST | AB1: *CARGA ADM EST | AC1: BITOLA
E2: tw | F2: tf | J2: u | K2: Ix | L2: Wx | M2: rx | N2: Zx | O2: Iy | P2: Wy | Q2: ry | R2: Zy | U2: ABA - λf | V2: ABA - λw | W2: Coef Red. Q | AA2: (Q.A's.fy)/1,66 | AB2: (Q.A's.fy)/2,00
A3: mm x kg/m | B3: kg/m | C3: mm | D3: mm | E3: mm | F3: mm | G3: mm | H3: mm | I3: cm² | J3: cm | K3: cm⁴ | L3: cm³ | M3: cm | N3: cm³ | O3: cm⁴ | P3: cm³ | Q3: cm | R3: cm³ | S3: cm | T3: cm⁴ | U3: bf/2t | V3: d’/t | W3: ≤ 1,00 | X3: cm⁶ | Y3: m³/m | Z3: cm² | AA3: tf | AB3: tf | AC3: mm x kg/m
A4: W 150 x 13,0 | B4: 13 | C4: 148 | D4: 100 | E4: 4.3 | F4: 4.9 | G4: 138 | H4: 118 | I4: 16.6 | J4: 67 | K4: 635 | L4: 85.8 | M4: 6.18 | N4: 96.4 | O4: 82 | P4: 16.4 | Q4: 2.22 | R4: 25.5 | S4: 2.6 | T4: 1.72 | U4: 10.2 | V4: 27.49 | W4: 1 | X4: 4181 | Y4: 0.67 | Z4: =AA4/2.1 -> 6.666666667 | AA4: 14 | AB4: 11.2 | AC4: W 150 x 13,0
A5: W 150 x 18,0 | B5: 18 | C5: 153 | D5: 102 | E5: 5.8 | F5: 7.1 | G5: 139 | H5: 119 | I5: 23.4 | J5: 69 | K5: 939 | L5: 122.8 | M5: 6.34 | N5: 139.4 | O5: 126 | P5: 24.7 | Q5: 2.32 | R5: 38.5 | S5: 2.69 | T5: 4.34 | U5: 7.18 | V5: 20.48 | W5: 1 | X5: 6683 | Y5: 0.69 | Z5: =AA5/2.1 -> 13.33333333 | AA5: 28 | AB5: 22.4 | AC5: W 150 x 18,0
A6: W 150 x 22,5 (H) | B6: 22.5 | C6: 152 | D6: 152 | E6: 5.8 | F6: 6.6 | G6: 139 | H6: 119 | I6: 29 | J6: 88 | K6: 1229 | L6: 161.7 | M6: 6.51 | N6: 179.6 | O6: 387 | P6: 50.9 | Q6: 3.65 | R6: 77.9 | S6: 4.1 | T6: 4.75 | U6: 11.52 | V6: 20.48 | W6: 1 | X6: 20417 | Y6: 0.88 | Z6: 15.71428571 | AA6: 33 | AB6: 26.4 | AC6: W 150 x 22,5 (H)
A7: W 150 x 24,0 | B7: 24 | C7: 160 | D7: 102 | E7: 6.6 | F7: 10.3 | G7: 139 | H7: 115 | I7: 31.5 | J7: 69 | K7: 1384 | L7: 173 | M7: 6.63 | N7: 197.6 | O7: 183 | P7: 35.9 | Q7: 2.41 | R7: 55.8 | S7: 2.73 | T7: 11.08 | U7: 4.95 | V7: 17.48 | W7: 1 | X7: 10206 | Y7: 0.69 | Z7: 20.95238095 | AA7: 44 | AB7: 35.2 | AC7: W 150 x 24,0
A8: W 150 x 29,8 (H) | B8: 29.8 | C8: 157 | D8: 153 | E8: 6.6 | F8: 9.3 | G8: 138 | H8: 118 | I8: 38.5 | J8: 90 | K8: 1739 | L8: 221.5 | M8: 6.72 | N8: 247.5 | O8: 556 | P8: 72.6 | Q8: 3.8 | R8: 110.8 | S8: 4.18 | T8: 10.95 | U8: 8.23 | V8: 17.94 | W8: 1 | X8: 30277 | Y8: 0.9 | Z8: 25.23809524 | AA8: 53 | AB8: 42.4 | AC8: W 150 x 29,8 (H)
A9: W 150 x 37,1 (H) | B9: 37.1 | C9: 162 | D9: 154 | E9: 8.1 | F9: 11.6 | G9: 139 | H9: 119 | I9: 47.8 | J9: 91 | K9: 2244 | L9: 277 | M9: 6.85 | N9: 313.5 | O9: 707 | P9: 91.8 | Q9: 3.84 | R9: 140.4 | S9: 4.22 | T9: 20.58 | U9: 6.64 | V9: 14.67 | W9: 1 | X9: 39930 | Y9: 0.91 | Z9: 34.28571429 | AA9: 72 | AB9: 57.6 | AC9: W 150 x 37,1 (H)
A10: W 200 x 15,0 | B10: 15 | C10: 200 | D10: 100 | E10: 4.3 | F10: 5.2 | G10: 190 | H10: 170 | I10: 19.4 | J10: 77 | K10: 1305 | L10: 130.5 | M10: 8.2 | N10: 147.9 | O10: 87 | P10: 17.4 | Q10: 2.12 | R10: 27.3 | S10: 2.55 | T10: 2.05 | U10: 9.62 | V10: 39.44 | W10: 0.95 | X10: 8222 | Y10: 0.77 | Z10: 7.619047619 | AA10: 16 | AB10: 12.8 | AC10: W 200 x 15,0
A11: W 200 x 19,3 | B11: 19.3 | C11: 203 | D11: 102 | E11: 5.8 | F11: 6.5 | G11: 190 | H11: 170 | I11: 25.1 | J11: 79 | K11: 1686 | L11: 166.1 | M11: 8.19 | N11: 190.6 | O11: 116 | P11: 22.7 | Q11: 2.14 | R11: 35.9 | S11: 2.59 | T11: 4.02 | U11: 7.85 | V11: 29.31 | W11: 1 | X11: 11098 | Y11: 0.79 | Z11: 13.33333333 | AA11: 28 | AB11: 22.4 | AC11: W 200 x 19,3
A12: W 200 x 22,5 | B12: 22.5 | C12: 206 | D12: 102 | E12: 6.2 | F12: 8 | G12: 190 | H12: 170 | I12: 29 | J12: 79 | K12: 2029 | L12: 197 | M12: 8.37 | N12: 225.5 | O12: 142 | P12: 27.9 | Q12: 2.22 | R12: 43.9 | S12: 2.63 | T12: 6.18 | U12: 6.38 | V12: 27.42 | W12: 1 | X12: 13868 | Y12: 0.79 | Z12: 17.14285714 | AA12: 36 | AB12: 28.8 | AC12: W 200 x 22,5
A13: W 200 x 26,6 | B13: 26.6 | C13: 207 | D13: 133 | E13: 5.8 | F13: 8.4 | G13: 190 | H13: 170 | I13: 34.2 | J13: 92 | K13: 2611 | L13: 252.3 | M13: 8.73 | N13: 282.3 | O13: 330 | P13: 49.6 | Q13: 3.1 | R13: 76.3 | S13: 3.54 | T13: 7.65 | U13: 7.92 | V13: 29.34 | W13: 1 | X13: 32477 | Y13: 0.92 | Z13: 20.47619048 | AA13: 43 | AB13: 34.4 | AC13: W 200 x 26,6
A14: W 200 x 31,3 | B14: 31.3 | C14: 210 | D14: 134 | E14: 6.4 | F14: 10.2 | G14: 190 | H14: 170 | I14: 40.3 | J14: 93 | K14: 3168 | L14: 301.7 | M14: 8.86 | N14: 338.6 | O14: 410 | P14: 61.2 | Q14: 3.19 | R14: 94 | S14: 3.6 | T14: 12.59 | U14: 6.57 | V14: 26.5 | W14: 1 | X14: 40822 | Y14: 0.93 | Z14: 26.66666667 | AA14: 56 | AB14: 44.8 | AC14: W 200 x 31,3
A15: W 200 x 35,9 (H) | B15: 35.9 | C15: 201 | D15: 165 | E15: 6.2 | F15: 10.2 | G15: 181 | H15: 161 | I15: 45.7 | J15: 103 | K15: 3437 | L15: 342 | M15: 8.67 | N15: 379.2 | O15: 764 | P15: 92.6 | Q15: 4.09 | R15: 141 | S15: 4.5 | T15: 14.51 | U15: 8.09 | V15: 25.9 | W15: 1 | X15: 69502 | Y15: 1.03 | Z15: 30.47619048 | AA15: 64 | AB15: 51.2 | AC15: W 200 x 35,9 (H)
A16: W 200 x 41,7 (H) | B16: 41.7 | C16: 205 | D16: 166 | E16: 7.2 | F16: 11.8 | G16: 181 | H16: 157 | I16: 53.5 | J16: 104 | K16: 4114 | L16: 401.4 | M16: 8.77 | N16: 448.6 | O16: 901 | P16: 108.5 | Q16: 4.1 | R16: 165.7 | S16: 4.53 | T16: 23.19 | U16: 7.03 | V16: 21.86 | W16: 1 | X16: 83948 | Y16: 1.04 | Z16: 38.0952381 | AA16: 80 | AB16: 64 | AC16: W 200 x 41,7 (H)
A17: W 200 x 46,1 (H) | B17: 46.1 | C17: 203 | D17: 203 | E17: 7.2 | F17: 11 | G17: 181 | H17: 161 | I17: 58.6 | J17: 119 | K17: 4543 | L17: 447.6 | M17: 8.81 | N17: 495.3 | O17: 1535 | P17: 151.2 | Q17: 5.12 | R17: 229.5 | S17: 5.58 | T17: 22.01 | U17: 9.23 | V17: 22.36 | W17: 1 | X17: 141342 | Y17: 1.19 | Z17: 40.95238095 | AA17: 86 | AB17: 68.8 | AC17: W 200 x 46,1 (H)
A18: W 200 x 52,0 (H) | B18: 52 | C18: 206 | D18: 204 | E18: 7.9 | F18: 12.6 | G18: 181 | H18: 157 | I18: 66.9 | J18: 119 | K18: 5298 | L18: 514.4 | M18: 8.9 | N18: 572.5 | O18: 1784 | P18: 174.9 | Q18: 5.16 | R18: 265.8 | S18: 5.61 | T18: 33.34 | U18: 8.1 | V18: 19.85 | W18: 1 | X18: 166710 | Y18: 1.19 | Z18: 49.52380952 | AA18: 104 | AB18: 83.2 | AC18: W 200 x 52,0 (H)
A19: HP 200 x 53,0 (H) | B19: 53 | C19: 204 | D19: 207 | E19: 11.3 | F19: 11.3 | G19: 181 | H19: 161 | I19: 68.1 | J19: 120 | K19: 4977 | L19: 488 | M19: 8.55 | N19: 551.3 | O19: 1673 | P19: 161.7 | Q19: 4.96 | R19: 248.6 | S19: 5.57 | T19: 31.93 | U19: 9.16 | V19: 14.28 | W19: 1 | X19: 155075 | Y19: 1.2 | Z19: 50.47619048 | AA19: 106 | AB19: 84.8 | AC19: HP 200 x 53,0 (H)
A20: W 200 x 59,0 (H) | B20: 59 | C20: 210 | D20: 205 | E20: 9.1 | F20: 14.2 | G20: 182 | H20: 158 | I20: 76 | J20: 120 | K20: 6140 | L20: 584.8 | M20: 8.99 | N20: 655.9 | O20: 2041 | P20: 199.1 | Q20: 5.18 | R20: 303 | S20: 5.64 | T20: 47.69 | U20: 7.22 | V20: 17.32 | W20: 1 | X20: 195418 | Y20: 1.2 | Z20: 58.0952381 | AA20: 122 | AB20: 97.6 | AC20: W 200 x 59,0 (H)
A21: W 200 x 71,0 (H) | B21: 71 | C21: 216 | D21: 206 | E21: 10.2 | F21: 17.4 | G21: 181 | H21: 161 | I21: 91 | J21: 122 | K21: 7660 | L21: 709.2 | M21: 9.17 | N21: 803.2 | O21: 2537 | P21: 246.3 | Q21: 5.28 | R21: 374.5 | S21: 5.7 | T21: 81.66 | U21: 5.92 | V21: 15.8 | W21: 1 | X21: 249976 | Y21: 1.22 | Z21: 73.33333333 | AA21: 154 | AB21: 123.2 | AC21: W 200 x 71,0 (H)
A22: W 200 x 86,0 (H) | B22: 86 | C22: 222 | D22: 209 | E22: 13 | F22: 20.6 | G22: 181 | H22: 157 | I22: 110.9 | J22: 123 | K22: 9498 | L22: 855.7 | M22: 9.26 | N22: 984.2 | O22: 3139 | P22: 300.4 | Q22: 5.32 | R22: 458.7 | S22: 5.77 | T22: 142.19 | U22: 5.07 | V22: 12.06 | W22: 1 | X22: 317844 | Y22: 1.23 | Z22: 92.85714286 | AA22: 195 | AB22: 156 | AC22: W 200 x 86,0 (H)
A23: W 250 x 17,9 | B23: 17.9 | C23: 251 | D23: 101 | E23: 4.8 | F23: 5.3 | G23: 240 | H23: 220 | I23: 23.1 | J23: 88 | K23: 2291 | L23: 182.6 | M23: 9.96 | N23: 211 | O23: 91 | P23: 18.1 | Q23: 1.99 | R23: 28.8 | S23: 2.48 | T23: 2.54 | U23: 9.53 | V23: 45.92 | W23: 0.9 | X23: 13735 | Y23: 0.88 | Z23: 9.047619048 | AA23: 19 | AB23: 15.2 | AC23: W 250 x 17,9
A24: W 250 x 22,3 | B24: 22.3 | C24: 254 | D24: 102 | E24: 5.8 | F24: 6.9 | G24: 240 | H24: 220 | I24: 28.9 | J24: 89 | K24: 2939 | L24: 231.4 | M24: 10.09 | N24: 267.7 | O24: 123 | P24: 24.1 | Q24: 2.06 | R24: 38.4 | S24: 2.54 | T24: 4.77 | U24: 7.39 | V24: 37.97 | W24: 0.96 | X24: 18629 | Y24: 0.89 | Z24: 14.76190476 | AA24: 31 | AB24: 24.8 | AC24: W 250 x 22,3
A25: W 250 x 25,3 | B25: 25.3 | C25: 257 | D25: 102 | E25: 6.1 | F25: 8.4 | G25: 240 | H25: 220 | I25: 32.6 | J25: 89 | K25: 3473 | L25: 270.2 | M25: 10.31 | N25: 311.1 | O25: 149 | P25: 29.3 | Q25: 2.14 | R25: 46.4 | S25: 2.58 | T25: 7.06 | U25: 6.07 | V25: 36.1 | W25: 0.98 | X25: 22955 | Y25: 0.89 | Z25: 19.04761905 | AA25: 40 | AB25: 32 | AC25: W 250 x 25,3
A26: W 250 x 28,4 | B26: 28.4 | C26: 260 | D26: 102 | E26: 6.4 | F26: 10 | G26: 240 | H26: 220 | I26: 36.6 | J26: 90 | K26: 4046 | L26: 311.2 | M26: 10.51 | N26: 357.3 | O26: 178 | P26: 34.8 | Q26: 2.2 | R26: 54.9 | S26: 2.62 | T26: 10.34 | U26: 5.1 | V26: 34.38 | W26: 1 | X26: 27636 | Y26: 0.9 | Z26: 23.33333333 | AA26: 49 | AB26: 39.2 | AC26: W 250 x 28,4
A27: W 250 x 32,7 | B27: 32.7 | C27: 258 | D27: 146 | E27: 6.1 | F27: 9.1 | G27: 240 | H27: 220 | I27: 42.1 | J27: 107 | K27: 4937 | L27: 382.7 | M27: 10.83 | N27: 428.5 | O27: 473 | P27: 64.8 | Q27: 3.35 | R27: 99.7 | S27: 3.86 | T27: 10.44 | U27: 8.02 | V27: 36.03 | W27: 0.98 | X27: 73104 | Y27: 1.07 | Z27: 25.71428571 | AA27: 54 | AB27: 43.2 | AC27: W 250 x 32,7
A28: W 250 x 38,5 | B28: 38.5 | C28: 262 | D28: 147 | E28: 6.6 | F28: 11.2 | G28: 240 | H28: 220 | I28: 49.6 | J28: 108 | K28: 6057 | L28: 462.4 | M28: 11.05 | N28: 517.8 | O28: 594 | P28: 80.8 | Q28: 3.46 | R28: 124.1 | S28: 3.93 | T28: 17.63 | U28: 6.56 | V28: 33.27 | W28: 1 | X28: 93242 | Y28: 1.08 | Z28: 33.33333333 | AA28: 70 | AB28: 56 | AC28: W 250 x 38,5
A29: W 250 x 44,8 | B29: 44.8 | C29: 266 | D29: 148 | E29: 7.6 | F29: 13 | G29: 240 | H29: 220 | I29: 57.6 | J29: 109 | K29: 7158 | L29: 538.2 | M29: 11.15 | N29: 606.3 | O29: 704 | P29: 95.1 | Q29: 3.5 | R29: 146.4 | S29: 3.96 | T29: 27.14 | U29: 5.69 | V29: 28.95 | W29: 1 | X29: 112398 | Y29: 1.09 | Z29: 41.42857143 | AA29: 87 | AB29: 69.6 | AC29: W 250 x 44,8
A30: HP 250 x 62,0 (H) | B30: 62 | C30: 246 | D30: 256 | E30: 10.5 | F30: 10.7 | G30: 225 | H30: 201 | I30: 79.6 | J30: 147 | K30: 8728 | L30: 709.6 | M30: 10.47 | N30: 790.5 | O30: 2995 | P30: 234 | Q30: 6.13 | R30: 357.8 | S30: 6.89 | T30: 33.46 | U30: 11.96 | V30: 19.1 | W30: 1 | X30: 414130 | Y30: 1.47 | Z30: 57.61904762 | AA30: 121 | AB30: 96.8 | AC30: HP 250 x 62,0 (H)
A31: W 250 x 73,0 (H) | B31: 73 | C31: 253 | D31: 254 | E31: 8.6 | F31: 14.2 | G31: 225 | H31: 201 | I31: 92.7 | J31: 148 | K31: 11257 | L31: 889.9 | M31: 11.02 | N31: 983.3 | O31: 3880 | P31: 305.5 | Q31: 6.47 | R31: 463.1 | S31: 7.01 | T31: 56.94 | U31: 8.94 | V31: 23.33 | W31: 1 | X31: 552900 | Y31: 1.48 | Z31: 70.95238095 | AA31: 149 | AB31: 119.2 | AC31: W 250 x 73,0 (H)
A32: W 250 x 80,0 (H) | B32: 80 | C32: 256 | D32: 255 | E32: 9.4 | F32: 15.6 | G32: 225 | H32: 201 | I32: 101.9 | J32: 149 | K32: 12550 | L32: 980.5 | M32: 11.1 | N32: 1088.7 | O32: 4313 | P32: 338.3 | Q32: 6.51 | R32: 513.1 | S32: 7.04 | T32: 75.02 | U32: 8.17 | V32: 21.36 | W32: 1 | X32: 622878 | Y32: 1.49 | Z32: 80 | AA32: 168 | AB32: 134.4 | AC32: W 250 x 80,0 (H)
A33: HP 250 x 85,0 (H) | B33: 85 | C33: 254 | D33: 260 | E33: 14.4 | F33: 14.4 | G33: 225 | H33: 201 | I33: 108.5 | J33: 150 | K33: 1228 | L33: 966.9 | M33: 10.64 | N33: 1093.2 | O33: 4225 | P33: 325 | Q33: 6.24 | R33: 499.6 | S33: 7 | T33: 82.07 | U33: 9.03 | V33: 13.97 | W33: 1 | X33: 605403 | Y33: 1.5 | Z33: 86.66666667 | AA33: 182 | AB33: 145.6 | AC33: HP 250 x 85,0 (H)
A34: W 250 x 89,0 (H) | B34: 89 | C34: 260 | D34: 256 | E34: 10.7 | F34: 17.3 | G34: 225 | H34: 201 | I34: 113.9 | J34: 150 | K34: 14237 | L34: 1095.1 | M34: 11.18 | N34: 1224.4 | O34: 4841 | P34: 378.2 | Q34: 6.52 | R34: 574.3 | S34: 7.06 | T34: 102.81 | U34: 7.4 | V34: 18.82 | W34: 1 | X34: 712351 | Y34: 1.5 | Z34: 91.9047619 | AA34: 193 | AB34: 154.4 | AC34: W 250 x 89,0 (H)
A35: W 250 x 101,0 (H) | B35: 101 | C35: 264 | D35: 257 | E35: 11.9 | F35: 19.6 | G35: 225 | H35: 201 | I35: 128.7 | J35: 151 | K35: 16352 | L35: 1238.8 | M35: 11.27 | N35: 1395 | O35: 5549 | P35: 431.8 | Q35: 6.57 | R35: 656.3 | S35: 7.1 | T35: 147.7 | U35: 6.56 | V35: 16.87 | W35: 1 | X35: 828031 | Y35: 1.51 | Z35: 106.6666667 | AA35: 224 | AB35: 179.2 | AC35: W 250 x 101,0 (H)
A36: W 250 x 115,0 (H) | B36: 115 | C36: 269 | D36: 259 | E36: 13.5 | F36: 22.1 | G36: 225 | H36: 201 | I36: 146.1 | J36: 153 | K36: 18920 | L36: 1406.7 | M36: 11.38 | N36: 1597.4 | O36: 6405 | P36: 494.6 | Q36: 6.62 | R36: 752.7 | S36: 7.16 | T36: 212 | U36: 5.86 | V36: 14.87 | W36: 1 | X36: 975265 | Y36: 1.53 | Z36: 123.8095238 | AA36: 260 | AB36: 208 | AC36: W 250 x 115,0 (H)
A37: W 310 x 21,0 | B37: 21 | C37: 303 | D37: 101 | E37: 5.1 | F37: 5.7 | G37: 292 | H37: 272 | I37: 27.2 | J37: 98 | K37: 3776 | L37: 249.2 | M37: 11.77 | N37: 291.9 | O37: 98 | P37: 19.5 | Q37: 1.9 | R37: 31.4 | S37: 2.42 | T37: 3.27 | U37: 8.86 | V37: 53.25 | W37: 0.84 | X37: 21628 | Y37: 0.98 | Z37: 10.47619048 | AA37: 22 | AB37: 17.6 | AC37: W 310 x 21,0
A38: W 310 x 23,8 | B38: 23.8 | C38: 305 | D38: 101 | E38: 5.6 | F38: 6.7 | G38: 292 | H38: 272 | I38: 30.7 | J38: 99 | K38: 4346 | L38: 285 | M38: 11.89 | N38: 333.2 | O38: 116 | P38: 22.9 | Q38: 1.94 | R38: 36.9 | S38: 2.45 | T38: 4.65 | U38: 7.54 | V38: 48.5 | W38: 0.87 | X38: 25594 | Y38: 0.99 | Z38: 13.80952381 | AA38: 29 | AB38: 23.2 | AC38: W 310 x 23,8
A39: W 310 x 28,3 | B39: 28.3 | C39: 309 | D39: 102 | E39: 6 | F39: 8.9 | G39: 291 | H39: 271 | I39: 36.5 | J39: 100 | K39: 5500 | L39: 356 | M39: 12.28 | N39: 412 | O39: 158 | P39: 31 | Q39: 2.08 | R39: 49.4 | S39: 2.55 | T39: 8.14 | U39: 5.73 | V39: 45.2 | W39: 0.91 | X39: 35441 | Y39: 1 | Z39: 19.52380952 | AA39: 41 | AB39: 32.8 | AC39: W 310 x 28,3
A40: W 310 x 32,7 | B40: 32.7 | C40: 313 | D40: 102 | E40: 6.6 | F40: 10.8 | G40: 291 | H40: 271 | I40: 42.1 | J40: 100 | K40: 6570 | L40: 419.8 | M40: 12.49 | N40: 485.3 | O40: 192 | P40: 37.6 | Q40: 2.13 | R40: 59.8 | S40: 2.58 | T40: 12.91 | U40: 4.72 | V40: 41.12 | W40: 0.94 | X40: 43612 | Y40: 1 | Z40: 25.71428571 | AA40: 54 | AB40: 43.2 | AC40: W 310 x 32,7
A41: W 310 x 38,7 | B41: 38.7 | C41: 310 | D41: 165 | E41: 5.8 | F41: 9.7 | G41: 291 | H41: 271 | I41: 49.7 | J41: 125 | K41: 8581 | L41: 553.6 | M41: 13.14 | N41: 615.4 | O41: 727 | P41: 88.1 | Q41: 3.82 | R41: 134.9 | S41: 4.38 | T41: 13.2 | U41: 8.51 | V41: 46.66 | W41: 0.93 | X41: 163728 | Y41: 1.25 | Z41: 29.04761905 | AA41: 61 | AB41: 48.8 | AC41: W 310 x 38,7
A42: W 310 x 44,5 | B42: 44.5 | C42: 313 | D42: 166 | E42: 6.6 | F42: 11.2 | G42: 291 | H42: 271 | I42: 57.2 | J42: 126 | K42: 9997 | L42: 638.8 | M42: 13.22 | N42: 712.8 | O42: 855 | P42: 103 | Q42: 3.87 | R42: 158 | S42: 4.41 | T42: 19.9 | U42: 7.41 | V42: 41 | W42: 0.93 | X42: 194433 | Y42: 1.26 | Z42: 36.66666667 | AA42: 77 | AB42: 61.6 | AC42: W 310 x 44,5
A43: W 310 x 52,0 | B43: 52 | C43: 317 | D43: 167 | E43: 7.6 | F43: 13.2 | G43: 291 | H43: 271 | I43: 67 | J43: 127 | K43: 11909 | L43: 751.4 | M43: 13.33 | N43: 842.5 | O43: 1026 | P43: 122.9 | Q43: 3.91 | R43: 188.8 | S43: 4.45 | T43: 31.81 | U43: 6.33 | V43: 35.61 | W43: 1 | X43: 236422 | Y43: 1.27 | Z43: 48.0952381 | AA43: 101 | AB43: 80.8 | AC43: W 310 x 52,0
A44: HP 310 x 79,0 (H) | B44: 79 | C44: 299 | D44: 306 | E44: 11 | F44: 11 | G44: 277 | H44: 245 | I44: 100 | J44: 177 | K44: 16316 | L44: 1091.3 | M44: 12.77 | N44: 1210.1 | O44: 5258 | P44: 343.7 | Q44: 7.25 | R44: 525.4 | S44: 8.2 | T44: 46.72 | U44: 13.91 | V44: 22.27 | W44: 0.99 | X44: 1089258 | Y44: 1.77 | Z44: 72.85714286 | AA44: 153 | AB44: 122.4 | AC44: HP 310 x 79,0 (H)
A45: HP 310 x 93,0 (H) | B45: 93 | C45: 303 | D45: 308 | E45: 13.1 | F45: 13.1 | G45: 277 | H45: 245 | I45: 119.2 | J45: 178 | K45: 19682 | L45: 1299.1 | M45: 12.85 | N45: 1450.3 | O45: 6387 | P45: 414.7 | Q45: 7.32 | R45: 635.5 | S45: 8.26 | T45: 77.33 | U45: 11.76 | V45: 18.69 | W45: 1 | X45: 1340320 | Y45: 1.78 | Z45: 92.85714286 | AA45: 195 | AB45: 156 | AC45: HP 310 x 93,0 (H)
A46: W 310 x 97,0 (H) | B46: 97 | C46: 308 | D46: 305 | E46: 9.9 | F46: 15.4 | G46: 277 | H46: 245 | I46: 123.6 | J46: 179 | K46: 22284 | L46: 1447 | M46: 13.43 | N46: 1594.2 | O46: 7286 | P46: 477.8 | Q46: 7.68 | R46: 725 | S46: 8.38 | T46: 92.12 | U46: 9.9 | V46: 24.77 | W46: 1 | X46: 1558682 | Y46: 1.79 | Z46: 97.14285714 | AA46: 204 | AB46: 163.2 | AC46: W 310 x 97,0 (H)
A47: W 310 x 107,0 (H) | B47: 107 | C47: 311 | D47: 306 | E47: 10.9 | F47: 17 | G47: 277 | H47: 245 | I47: 136.4 | J47: 180 | K47: 24839 | L47: 1597.3 | M47: 13.49 | N47: 1768.2 | O47: 8123 | P47: 530.9 | Q47: 7.72 | R47: 806.1 | S47: 8.41 | T47: 122.86 | U47: 9 | V47: 22.48 | W47: 1 | X47: 1754271 | Y47: 1.8 | Z47: 110 | AA47: 231 | AB47: 184.8 | AC47: W 310 x 107,0 (H)
A48: HP 310 x 110,0 (H) | B48: 110 | C48: 308 | D48: 310 | E48: 15.4 | F48: 15.5 | G48: 277 | H48: 245 | I48: 141 | J48: 180 | K48: 23703 | L48: 1539.1 | M48: 12.97 | N48: 1730.6 | O48: 7707 | P48: 497.3 | Q48: 7.39 | R48: 763.7 | S48: 8.33 | T48: 125.66 | U48: 10 | V48: 15.91 | W48: 1 | X48: 1646104 | Y48: 1.8 | Z48: 114.7619048 | AA48: 241 | AB48: 192.8 | AC48: HP 310 x 110,0 (H)
A49: W 310 x 117,0 (H) | B49: 117 | C49: 314 | D49: 307 | E49: 11.9 | F49: 18.7 | G49: 277 | H49: 245 | I49: 149.9 | J49: 180 | K49: 27563 | L49: 1755.6 | M49: 13.56 | N49: 1952.6 | O49: 9024 | P49: 587.9 | Q49: 7.76 | R49: 893.1 | S49: 8.44 | T49: 161.61 | U49: 8.21 | V49: 20.55 | W49: 1 | X49: 1965950 | Y49: 1.8 | Z49: 123.3333333 | AA49: 259 | AB49: 207.2 | AC49: W 310 x 117,0 (H)
A50: HP 310 x 125,0 (H) | B50: 125 | C50: 312 | D50: 312 | E50: 17.4 | F50: 17.4 | G50: 277 | H50: 245 | I50: 159 | J50: 181 | K50: 27076 | L50: 1735.6 | M50: 13.05 | N50: 1963.3 | O50: 8823 | P50: 565.6 | Q50: 7.45 | R50: 870.6 | S50: 8.38 | T50: 177.98 | U50: 8.97 | V50: 14.09 | W50: 1 | X50: 1911029 | Y50: 1.81 | Z50: 132.3809524 | AA50: 278 | AB50: 222.4 | AC50: HP 310 x 125,0 (H)
A51: W 360 x 32,9 | B51: 32.9 | C51: 349 | D51: 127 | E51: 5.8 | F51: 8.5 | G51: 332 | H51: 308 | I51: 42.1 | J51: 117 | K51: 8358 | L51: 479 | M51: 14.09 | N51: 547.6 | O51: 291 | P51: 45.9 | Q51: 2.63 | R51: 72 | S51: 3.2 | T51: 9.15 | U51: 7.47 | V51: 53.1 | W51: 0.87 | X51: 84111 | Y51: 1.17 | Z51: 21.42857143 | AA51: 45 | AB51: 36 | AC51: W 360 x 32,9
A52: W 360 x 39,0 | B52: 39 | C52: 353 | D52: 128 | E52: 6.5 | F52: 10.7 | G52: 332 | H52: 308 | I52: 50.2 | J52: 118 | K52: 10331 | L52: 585.3 | M52: 14.35 | N52: 667.7 | O52: 375 | P52: 58.6 | Q52: 2.73 | R52: 91.9 | S52: 3.27 | T52: 15.83 | U52: 5.98 | V52: 47.32 | W52: 0.91 | X52: 109551 | Y52: 1.18 | Z52: 29.52380952 | AA52: 62 | AB52: 49.6 | AC52: W 360 x 39,0
A53: W 360 x 44,0 | B53: 44 | C53: 352 | D53: 171 | E53: 6.9 | F53: 9.8 | G53: 332 | H53: 308 | I53: 57.7 | J53: 135 | K53: 12258 | L53: 696.5 | M53: 14.58 | N53: 784.3 | O53: 818 | P53: 95.7 | Q53: 3.77 | R53: 148 | S53: 4.43 | T53: 16.7 | U53: 8.72 | V53: 44.7 | W53: 0.93 | X53: 239091 | Y53: 1.35 | Z53: 34.76190476 | AA53: 73 | AB53: 58.4 | AC53: W 360 x 44,0
A54: W 360 x 51,0 | B54: 51 | C54: 355 | D54: 171 | E54: 7.2 | F54: 11.6 | G54: 332 | H54: 308 | I54: 64.8 | J54: 136 | K54: 14222 | L54: 801.2 | M54: 14.81 | N54: 899.5 | O54: 968 | P54: 113.3 | Q54: 3.87 | R54: 174.7 | S54: 4.49 | T54: 24.65 | U54: 7.37 | V54: 42.75 | W54: 0.94 | X54: 284994 | Y54: 1.36 | Z54: 41.9047619 | AA54: 88 | AB54: 70.4 | AC54: W 360 x 51,0
A55: W 360 x 57,8 | B55: 57.8 | C55: 358 | D55: 172 | E55: 7.9 | F55: 13.1 | G55: 332 | H55: 308 | I55: 72.5 | J55: 137 | K55: 16143 | L55: 901.8 | M55: 14.92 | N55: 1014.8 | O55: 1113 | P55: 129.4 | Q55: 3.92 | R55: 199.8 | S55: 4.53 | T55: 34.45 | U55: 6.56 | V55: 38.96 | W55: 0.96 | X55: 330394 | Y55: 1.37 | Z55: 50.47619048 | AA55: 106 | AB55: 84.8 | AC55: W 360 x 57,8
A56: W 360 x 64,0 | B56: 64 | C56: 347 | D56: 203 | E56: 7.7 | F56: 13.5 | G56: 320 | H56: 288 | I56: 81.7 | J56: 146 | K56: 17890 | L56: 1031.1 | M56: 14.8 | N56: 1145.5 | O56: 1885 | P56: 185.7 | Q56: 4.8 | R56: 284.5 | S56: 5.44 | T56: 44.57 | U56: 7.52 | V56: 37.4 | W56: 0.98 | X56: 523362 | Y56: 1.46 | Z56: 58.57142857 | AA56: 123 | AB56: 98.4 | AC56: W 360 x 64,0
A57: W 360 x 72,0 | B57: 72 | C57: 350 | D57: 204 | E57: 8.6 | F57: 15.1 | G57: 320 | H57: 288 | I57: 91.3 | J57: 147 | K57: 20169 | L57: 1152.5 | M57: 14.86 | N57: 1285.9 | O57: 2140 | P57: 209.8 | Q57: 4.84 | R57: 321.8 | S57: 5.47 | T57: 61.18 | U57: 6.75 | V57: 33.47 | W57: 1 | X57: 599082 | Y57: 1.47 | Z57: 69.52380952 | AA57: 146 | AB57: 116.8 | AC57: W 360 x 72,0
A58: W 360 x 79,0 | B58: 79 | C58: 354 | D58: 205 | E58: 9.4 | F58: 16.8 | G58: 320 | H58: 288 | I58: 101.2 | J58: 148 | K58: 22713 | L58: 1283.2 | M58: 14.98 | N58: 1437 | O58: 2416 | P58: 235.7 | Q58: 4.89 | R58: 361.9 | S58: 5.51 | T58: 82.41 | U58: 6.1 | V58: 30.68 | W58: 1 | X58: 685701 | Y58: 1.48 | Z58: 79.52380952 | AA58: 167 | AB58: 133.6 | AC58: W 360 x 79,0
A59: W 360 x 91,0 (H) | B59: 91 | C59: 353 | D59: 254 | E59: 9.5 | F59: 16.4 | G59: 320 | H59: 288 | I59: 115.9 | J59: 168 | K59: 26755 | L59: 1515.9 | M59: 15.19 | N59: 1680.1 | O59: 4483 | P59: 353 | Q59: 6.22 | R59: 538.1 | S59: 6.9 | T59: 92.61 | U59: 7.74 | V59: 30.34 | W59: 1 | X59: 1268709 | Y59: 1.68 | Z59: 91.42857143 | AA59: 192 | AB59: 153.6 | AC59: W 360 x 91,0 (H)
A60: W 360 x 101,0 (H) | B60: 101 | C60: 357 | D60: 255 | E60: 10.5 | F60: 18.3 | G60: 320 | H60: 286 | I60: 129.5 | J60: 168 | K60: 30279 | L60: 1696.3 | M60: 15.29 | N60: 1888.9 | O60: 5063 | P60: 397.1 | Q60: 6.25 | R60: 606.1 | S60: 6.93 | T60: 128.47 | U60: 6.97 | V60: 27.28 | W60: 1 | X60: 1450410 | Y60: 1.68 | Z60: 104.7619048 | AA60: 220 | AB60: 176 | AC60: W 360 x 101,0 (H)
A61: W 360 x 110,0 (H) | B61: 110 | C61: 360 | D61: 256 | E61: 11.4 | F61: 19.9 | G61: 320 | H61: 288 | I61: 140.6 | J61: 169 | K61: 33155 | L61: 1841.9 | M61: 15.36 | N61: 2059.3 | O61: 5570 | P61: 435.2 | Q61: 6.29 | R61: 664.5 | S61: 6.96 | T61: 161.93 | U61: 6.43 | V61: 25.28 | W61: 1 | X61: 1609070 | Y61: 1.69 | Z61: 115.7142857 | AA61: 243 | AB61: 194.4 | AC61: W 360 x 110,0 (H)
A62: W 360 x 122,0 (H) | B62: 122 | C62: 363 | D62: 257 | E62: 13 | F62: 21.7 | G62: 320 | H62: 288 | I62: 155.3 | J62: 170 | K62: 36599 | L62: 2016.5 | M62: 15.35 | N62: 2269.8 | O62: 6147 | P62: 478.4 | Q62: 6.29 | R62: 732.4 | S62: 6.98 | T62: 212.7 | U62: 5.92 | V62: 22.12 | W62: 1 | X62: 1787806 | Y62: 1.7 | Z62: 130.4761905 | AA62: 274 | AB62: 219.2 | AC62: W 360 x 122,0 (H)
A63: W 410 x 38,8 | B63: 38.8 | C63: 399 | D63: 140 | E63: 6.4 | F63: 8.8 | G63: 381 | H63: 357 | I63: 50.3 | J63: 132 | K63: 12777 | L63: 640.5 | M63: 15.94 | N63: 736.8 | O63: 404 | P63: 57.7 | Q63: 2.83 | R63: 90.9 | S63: 3.49 | T63: 11.69 | U63: 7.95 | V63: 55.84 | W63: 0.85 | X63: 15319 | Y63: 1.32 | Z63: 25.71428571 | AA63: 54 | AB63: 43.2 | AC63: W 410 x 38,8
A64: W 410 x 46,1 | B64: 46.1 | C64: 403 | D64: 140 | E64: 7 | F64: 11.2 | G64: 381 | H64: 357 | I64: 59.2 | J64: 133 | K64: 15690 | L64: 778.7 | M64: 16.27 | N64: 891.1 | O64: 514 | P64: 73.4 | Q64: 2.95 | R64: 115.2 | S64: 3.55 | T64: 20.06 | U64: 6.25 | V64: 50.94 | W64: 0.88 | X64: 196571 | Y64: 1.33 | Z64: 34.76190476 | AA64: 73 | AB64: 58.4 | AC64: W 410 x 46,1
A65: W 410 x 53,0 | B65: 53 | C65: 403 | D65: 177 | E65: 7.5 | F65: 10.9 | G65: 381 | H65: 357 | I65: 68.4 | J65: 148 | K65: 18734 | L65: 929.7 | M65: 16.55 | N65: 1052.2 | O65: 1009 | P65: 114 | Q65: 3.84 | R65: 176.9 | S65: 4.56 | T65: 23.38 | U65: 8.12 | V65: 47.63 | W65: 0.91 | X65: 387194 | Y65: 1.48 | Z65: 41.9047619 | AA65: 88 | AB65: 70.4 | AC65: W 410 x 53,0
A66: W 410 x 60,0 | B66: 60 | C66: 407 | D66: 178 | E66: 7.7 | F66: 12.8 | G66: 381 | H66: 357 | I66: 76.2 | J66: 149 | K66: 21707 | L66: 1066.7 | M66: 16.88 | N66: 1201.5 | O66: 1205 | P66: 135.4 | Q66: 3.98 | R66: 209.2 | S66: 4.65 | T66: 33.78 | U66: 6.95 | V66: 46.42 | W66: 0.92 | X66: 467404 | Y66: 1.49 | Z66: 49.52380952 | AA66: 104 | AB66: 83.2 | AC66: W 410 x 60,0
A67: W 410 x 67,0 | B67: 67 | C67: 410 | D67: 179 | E67: 8.8 | F67: 14.4 | G67: 381 | H67: 357 | I67: 86.3 | J67: 150 | K67: 24678 | L67: 1203.8 | M67: 16.91 | N67: 1362.7 | O67: 1379 | P67: 154.1 | Q67: 4 | R67: 239 | S67: 4.67 | T67: 48.11 | U67: 6.22 | V67: 40.59 | W67: 0.95 | X67: 538546 | Y67: 1.5 | Z67: 60.95238095 | AA67: 128 | AB67: 102.4 | AC67: W 410 x 67,0
A68: W 410 x 75,0 | B68: 75 | C68: 413 | D68: 180 | E68: 9.7 | F68: 16 | G68: 381 | H68: 357 | I68: 95.8 | J68: 151 | K68: 27616 | L68: 1337.3 | M68: 16.98 | N68: 1518.6 | O68: 1559 | P68: 173.2 | Q68: 4.03 | R68: 269.1 | S68: 4.7 | T68: 65.21 | U68: 5.63 | V68: 36.8 | W68: 0.97 | X68: 612784 | Y68: 1.51 | Z68: 71.42857143 | AA68: 150 | AB68: 120 | AC68: W 410 x 75,0
A69: W 410 x 85,0 | B69: 85 | C69: 417 | D69: 181 | E69: 10.9 | F69: 18.2 | G69: 381 | H69: 357 | I69: 108.6 | J69: 152 | K69: 31658 | L69: 1518.4 | M69: 17.07 | N69: 1731.7 | O69: 1804 | P69: 199.3 | Q69: 4.08 | R69: 310.4 | S69: 4.74 | T69: 94.48 | U69: 4.97 | V69: 32.72 | W69: 1 | X69: 715165 | Y69: 1.52 | Z69: =AA69/2.1 -> 86.19047619 | AA69: 181 | AB69: 144.8 | AC69: W 410 x 85,0
A70: W 460 x 52,0 | B70: 52 | C70: 450 | D70: 152 | E70: 7.6 | F70: 10.8 | G70: 428 | H70: 404 | I70: 66.6 | J70: 147 | K70: 21370 | L70: 949.8 | M70: 17.91 | N70: 1095.9 | O70: 634 | P70: 83.5 | Q70: 3.09 | R70: 131.7 | S70: 3.79 | T70: 21.79 | U70: 7.04 | V70: 53.21 | W70: 0.86 | X70: 304837 | Y70: 1.47 | Z70: 38.57142857 | AA70: 81 | AB70: 64.8 | AC70: W 460 x 52,0
A71: W 460 x 60,0 | B71: 60 | C71: 455 | D71: 153 | E71: 8 | F71: 13.3 | G71: 428 | H71: 404 | I71: 76.2 | J71: 149 | K71: 25652 | L71: 1127.6 | M71: 18.35 | N71: 1292.1 | O71: 796 | P71: 104.1 | Q71: 3.23 | R71: 163.4 | S71: 3.89 | T71: 34.6 | U71: 5.75 | V71: 50.55 | W71: 0.88 | X71: 387230 | Y71: 1.49 | Z71: 47.61904762 | AA71: 100 | AB71: 80 | AC71: W 460 x 60,0
A72: W 460 x 68,0 | B72: 68 | C72: 459 | D72: 154 | E72: 9.1 | F72: 15.4 | G72: 428 | H72: 404 | I72: 87.6 | J72: 150 | K72: 29851 | L72: 1300.7 | M72: 18.46 | N72: 1495.4 | O72: 941 | P72: 122.2 | Q72: 3.28 | R72: 192.4 | S72: 3.93 | T72: 52.29 | U72: 5 | V72: 44.42 | W72: 0.92 | X72: 461163 | Y72: 1.5 | Z72: 60 | AA72: 126 | AB72: 100.8 | AC72: W 460 x 68,0
A73: W 460 x 74,0 | B73: 74 | C73: 457 | D73: 190 | E73: 9 | F73: 14.5 | G73: 428 | H73: 404 | I73: 94.9 | J73: 164 | K73: 33415 | L73: 1462.4 | M73: 18.77 | N73: 1657.4 | O73: 1661 | P73: 174.8 | Q73: 4.18 | R73: 271.3 | S73: 4.93 | T73: 52.97 | U73: 6.55 | V73: 44.89 | W73: 0.92 | X73: 811417 | Y73: 1.64 | Z73: 65.23809524 | AA73: 137 | AB73: 109.6 | AC73: W 460 x 74,0
A74: W 460 x 82,0 | B74: 82 | C74: 460 | D74: 191 | E74: 9.9 | F74: 16 | G74: 428 | H74: 404 | I74: 104.7 | J74: 164 | K74: 37157 | L74: 1615.5 | M74: 18.84 | N74: 1836.4 | O74: 1862 | P74: 195 | Q74: 4.22 | R74: 303.3 | S74: 4.96 | T74: 70.62 | U74: 5.97 | V74: 40.81 | W74: 0.95 | X74: 915745 | Y74: 1.64 | Z74: 76.19047619 | AA74: 160 | AB74: 128 | AC74: W 460 x 82,0
A75: W 460 x 89,0 | B75: 89 | C75: 463 | D75: 192 | E75: 10.5 | F75: 17.7 | G75: 428 | H75: 404 | I75: 114.1 | J75: 165 | K75: 41105 | L75: 1775.6 | M75: 18.98 | N75: 2019.4 | O75: 2093 | P75: 218 | Q75: 4.28 | R75: 339 | S75: 5.01 | T75: 92.49 | U75: 5.42 | V75: 38.44 | W75: 0.96 | X75: 1035073 | Y75: 1.65 | Z75: 86.19047619 | AA75: 181 | AB75: 144.8 | AC75: W 460 x 89,0
A76: W 460 x 97,0 | B76: 97 | C76: 466 | D76: 193 | E76: 11.4 | F76: 19 | G76: 428 | H76: 404 | I76: 123.4 | J76: 166 | K76: 44658 | L76: 1916.7 | M76: 19.03 | N76: 2187.4 | O76: 2283 | P76: 236.6 | Q76: 4.3 | R76: 368.8 | S76: 5.03 | T76: 115.05 | U76: 5.08 | V76: 35.44 | W76: 1 | X76: 1137180 | Y76: 1.66 | Z76: 99.04761905 | AA76: 208 | AB76: 166.4 | AC76: W 460 x 97,0
A77: W 460 x 106,0 | B77: 106 | C77: 469 | D77: 194 | E77: 12.6 | F77: 20.6 | G77: 428 | H77: 404 | I77: 135.1 | J77: 167 | K77: 48978 | L77: 2088.6 | M77: 19.04 | N77: 2394.6 | O77: 2515 | P77: 259.3 | Q77: 4.32 | R77: 405.7 | S77: 5.05 | T77: 148.19 | U77: 4.71 | V77: 32.05 | W77: 1 | X77: 1260063 | Y77: 1.67 | Z77: 110.4761905 | AA77: 232 | AB77: 185.6 | AC77: W 460 x 106,0
A78: W 530 x 66,0 | B78: 66 | C78: 525 | D78: 165 | E78: 8.9 | F78: 11.4 | G78: 502 | H78: 478 | I78: 83.6 | J78: 167 | K78: 34971 | L78: 1332.2 | M78: 20.46 | N78: 1558 | O78: 857 | P78: 103.9 | Q78: 3.2 | R78: 166 | S78: 4.02 | T78: 31.52 | U78: 7.24 | V78: 53.73 | W78: 0.84 | X78: 562854 | Y78: 1.67 | Z78: 49.52380952 | AA78: 104 | AB78: 83.2 | AC78: W 530 x 66,0
A79: W 530 x 72,0 | B79: 72 | C79: 524 | D79: 207 | E79: 9 | F79: 10.9 | G79: 502 | H79: 478 | I79: 91.6 | J79: 184 | K79: 39969 | L79: 1525.5 | M79: 20.89 | N79: 1755.9 | O79: 1615 | P79: 156 | Q79: 4.2 | R79: 244.6 | S79: 5.16 | T79: 33.41 | U79: 9.5 | V79: 53.13 | W79: 0.86 | X79: 1060548 | Y79: 1.84 | Z79: 55.23809524 | AA79: 116 | AB79: 92.8 | AC79: W 530 x 72,0
A80: W 530 x 74,0 | B80: 74 | C80: 529 | D80: 166 | E80: 9.7 | F80: 13.6 | G80: 502 | H80: 478 | I80: 95.1 | J80: 168 | K80: 40969 | L80: 1548.9 | M80: 20.76 | N80: 1804.9 | O80: 1041 | P80: 125.5 | Q80: 3.31 | R80: 200.1 | S80: 4.1 | T80: 47.39 | U80: 6.1 | V80: 49.26 | W80: 0.87 | X80: 688558 | Y80: 1.68 | Z80: 61.42857143 | AA80: 129 | AB80: 103.2 | AC80: W 530 x 74,0
A81: W 530 x 82,0 | B81: 82 | C81: 528 | D81: 209 | E81: 9.5 | F81: 13.3 | G81: 501 | H81: 477 | I81: 104.5 | J81: 185 | K81: 47569 | L81: 1801.8 | M81: 21.34 | N81: 2058.5 | O81: 2028 | P81: 194.1 | Q81: 4.41 | R81: 302.7 | S81: 5.31 | T81: 51.23 | U81: 7.86 | V81: 50.25 | W81: 0.88 | X81: 1340255 | Y81: 1.85 | Z81: 68.0952381 | AA81: 143 | AB81: 114.4 | AC81: W 530 x 82,0
A82: W 530 x 85,0 | B82: 85 | C82: 535 | D82: 166 | E82: 10.3 | F82: 16.5 | G82: 502 | H82: 478 | I82: 107.7 | J82: 169 | K82: 48453 | L82: 1811.3 | M82: 21.21 | N82: 2099.8 | O82: 1263 | P82: 152.2 | Q82: 3.42 | R82: 241.6 | S82: 4.17 | T82: 72.93 | U82: 5.03 | V82: 46.41 | W82: 0.9 | X82: 845463 | Y82: 1.69 | Z82: 74.28571429 | AA82: 156 | AB82: 124.8 | AC82: W 530 x 85,0
A83: W 530 x 92,0 | B83: 92 | C83: 533 | D83: 209 | E83: 10.2 | F83: 15.6 | G83: 502 | H83: 478 | I83: 117.6 | J83: 186 | K83: 55157 | L83: 2069.7 | M83: 21.65 | N83: 2359.8 | O83: 2379 | P83: 227.6 | Q83: 4.5 | R83: 354.7 | S83: 5.36 | T83: 75.5 | U83: 6.7 | V83: 46.84 | W83: 0.9 | X83: 1588565 | Y83: 1.86 | Z83: 81.42857143 | AA83: 171 | AB83: 136.8 | AC83: W 530 x 92,0
A84: W 530 x 101,0 | B84: 101 | C84: 537 | D84: 210 | E84: 10.9 | F84: 17.4 | G84: 502 | H84: 470 | I84: 130 | J84: 186 | K84: 62198 | L84: 2316.5 | M84: 21.87 | N84: 2640.4 | O84: 2693 | P84: 256.5 | Q84: 4.55 | R84: 400.6 | S84: 5.4 | T84: 106.04 | U84: 6.03 | V84: 43.14 | W84: 0.93 | X84: 1812734 | Y84: 1.86 | Z84: 95.23809524 | AA84: 200 | AB84: 160 | AC84: W 530 x 101,0
A85: W 530 x 109,0 | B85: 109 | C85: 539 | D85: 211 | E85: 11.6 | F85: 18.8 | G85: 501 | H85: 469 | I85: 139.7 | J85: 187 | K85: 67226 | L85: 2494.5 | M85: 21.94 | N85: 2847 | O85: 2952 | P85: 279.8 | Q85: 4.6 | R85: 437.4 | S85: 5.44 | T85: 131.38 | U85: 5.61 | V85: 40.47 | W85: 0.95 | X85: 1991291 | Y85: 1.87 | Z85: 106.1904762 | AA85: 223 | AB85: 178.4 | AC85: W 530 x 109,0
A86: W 610 x 101,0 | B86: 101 | C86: 603 | D86: 228 | E86: 10.5 | F86: 14.9 | G86: 573 | H86: 541 | I86: 130.3 | J86: 207 | K86: 77003 | L86: 2554 | M86: 24.31 | N86: 2922.7 | O86: 2951 | P86: 258.8 | Q86: 4.76 | R86: 405 | S86: 5.76 | T86: 81.68 | U86: 7.65 | V86: 51.54 | W86: 0.87 | X86: 2544966 | Y86: 2.07 | Z86: 87.14285714 | AA86: 183 | AB86: 146.4 | AC86: W 610 x 101,0
A87: W 610 x 113,0 | B87: 113 | C87: 608 | D87: 228 | E87: 11.2 | F87: 17.3 | G87: 573 | H87: 541 | I87: 145.3 | J87: 208 | K87: 88196 | L87: 2901.2 | M87: 24.64 | N87: 3312.9 | O87: 3426 | P87: 300.5 | Q87: 4.86 | R87: 469.7 | S87: 5.82 | T87: 116.5 | U87: 6.59 | V87: 48.34 | W87: 0.9 | X87: 2981078 | Y87: 2.08 | Z87: 102.8571429 | AA87: 216 | AB87: 172.8 | AC87: W 610 x 113,0
A88: W 610 x 125,0 | B88: 125 | C88: 612 | D88: 229 | E88: 11.9 | F88: 19.6 | G88: 573 | H88: 541 | I88: 160.1 | J88: 209 | K88: 99184 | L88: 3241.3 | M88: 24.89 | N88: 3697.3 | O88: 3933 | P88: 343.5 | Q88: 4.96 | R88: 536.3 | S88: 5.89 | T88: 159.5 | U88: 5.84 | V88: 45.45 | W88: 0.91 | X88: 3441766 | Y88: 2.09 | Z88: 118.5714286 | AA88: 249 | AB88: 199.2 | AC88: W 610 x 125,0
A89: W 610 x 140,0 | B89: 140 | C89: 617 | D89: 230 | E89: 13.1 | F89: 22.2 | G89: 573 | H89: 541 | I89: 179.3 | J89: 210 | K89: 112619 | L89: 3650.5 | M89: 25.06 | N89: 4173.1 | O89: 4515 | P89: 392.6 | Q89: 5.02 | R89: 614 | S89: 5.94 | T89: 225.01 | U89: 5.18 | V89: 41.27 | W89: 0.94 | X89: 3981687 | Y89: 2.1 | Z89: 140 | AA89: 294 | AB89: 235.2 | AC89: W 610 x 140,0
A90: W 610 x 155,0 | B90: 155 | C90: 611 | D90: 324 | E90: 12.7 | F90: 19 | G90: 573 | H90: 541 | I90: 198.1 | J90: 247 | K90: 129583 | L90: 4241.7 | M90: 25.58 | N90: 4749.1 | O90: 10783 | P90: 665.6 | Q90: 7.38 | R90: 1022.6 | S90: 8.53 | T90: 200.77 | U90: 8.53 | V90: 42.6 | W90: 0.94 | X90: 9436714 | Y90: 2.47 | Z90: 152.3809524 | AA90: 320 | AB90: 256 | AC90: W 610 x 155,0
A91: W 610 x 174,0 | B91: 174 | C91: 616 | D91: 325 | E91: 14 | F91: 21.6 | G91: 573 | H91: 541 | I91: 222.8 | J91: 248 | K91: 147754 | L91: 4797.2 | M91: 25.75 | N91: 5383.3 | O91: 12374 | P91: 761.5 | Q91: 7.45 | R91: 1171.1 | S91: 8.58 | T91: 286.88 | U91: 7.52 | V91: 38.63 | W91: 0.96 | X91: 10915665 | Y91: 2.48 | Z91: 180 | AA91: 378 | AB91: 302.4 | AC91: W 610 x 174,0

Sheet Aços
A1: Aço | B1: Fy
A2: ASTM A36 | B2: 25
A3: CF-26 | B3: 25
A4: ASTM A572GR50 | B4: 34.5
